{"text_format":"1","workbook":"xlsx","n_sheets":4,"sheets":["問題作成_説明中心","問題作成_説明中心 (2)","問題作成_用語中心","用語表"],"not_rendered":{"charts":0,"images":15,"macros":1,"external_links":0,"defined_names":0,"comments":0,"pivot_tables":0},"unopened":[],"bounds":{"document_bytes":16777216,"sheet_cells":100000,"rows_first":2000,"rows_last":500,"rows_between":2000,"halvings":0,"cell_chars":16384,"cell_head_chars":4096},"cells_cut":0,"cells_raw":0,"read":"whole","date_system":"1900"}

{"sheet":"問題作成_説明中心","index":0,"n_rows":189,"n_cols":14,"rows_kept":189,"cut":false,"hidden":false,"merged":[[39,1,39,8],[40,1,40,8],[0,1,0,10],[1,1,1,10],[37,1,37,8],[38,1,38,8],[48,4,54,11],[41,1,41,8],[42,1,42,8],[45,1,45,8],[46,1,46,8],[43,1,43,8],[44,1,44,8]]}
[null,"《1級》用語確認問題"]
[null,"　　　年　　　組　　　席　名前"]
[]
[1,{"$f":"VLOOKUP(A4,用語表!$B$3:$D$134,3)","v":"キャッシュメモリ"},null,{"$f":"A36+1","v":34},{"$f":"VLOOKUP(D4,用語表!$B$3:$D$134,3)","v":"UPS"},null,{"$f":"D36+1","v":67},{"$f":"VLOOKUP(G4,用語表!$B$3:$D$134,3)","v":"CGI"},null,{"$f":"G36+1","v":100},{"$f":"VLOOKUP(J4,用語表!$B$3:$D$134,3)","v":"SWOT分析（スウォット）"}]
[2,{"$f":"VLOOKUP(A5,用語表!$B$3:$D$134,3)","v":"ディスクキャッシュ"},null,{"$f":"D4+1","v":35},{"$f":"VLOOKUP(D5,用語表!$B$3:$D$134,3)","v":"RAID"},null,{"$f":"G4+1","v":68},{"$f":"VLOOKUP(G5,用語表!$B$3:$D$134,3)","v":"XML"},null,{"$f":"J4+1","v":101},{"$f":"VLOOKUP(J5,用語表!$B$3:$D$134,3)","v":"PPM分析"}]
[3,{"$f":"VLOOKUP(A6,用語表!$B$3:$D$134,3)","v":"デバイスドライバ"},null,{"$f":"D5+1","v":36},{"$f":"VLOOKUP(D6,用語表!$B$3:$D$134,3)","v":"OSI参照モデル"},null,{"$f":"G5+1","v":69},{"$f":"VLOOKUP(G6,用語表!$B$3:$D$134,3)","v":"Cookie"},null,{"$f":"J5+1","v":102},{"$f":"VLOOKUP(J6,用語表!$B$3:$D$134,3)","v":"ERP(経営資源計画)"}]
[4,{"$f":"VLOOKUP(A7,用語表!$B$3:$D$134,3)","v":"プラグアンドプレイ"},null,37,{"$f":"VLOOKUP(D7,用語表!$B$3:$D$134,3)","v":"ハブ"},null,70,{"$f":"VLOOKUP(G7,用語表!$B$3:$D$134,3)","v":"MIME"},null,103,{"$f":"VLOOKUP(J7,用語表!$B$3:$D$134,3)","v":"CRM(顧客関係管理)"}]
[5,{"$f":"VLOOKUP(A8,用語表!$B$3:$D$134,3)","v":"SSD"},null,38,{"$f":"VLOOKUP(D8,用語表!$B$3:$D$134,3)","v":"ルータ"},null,71,{"$f":"VLOOKUP(G8,用語表!$B$3:$D$134,3)","v":"VoIP"},null,104,{"$f":"VLOOKUP(J8,用語表!$B$3:$D$134,3)","v":"BPR(業務プロセス再設計)"}]
[6,{"$f":"VLOOKUP(A9,用語表!$B$3:$D$134,3)","v":"ウォータフォールモデル"},null,39,{"$f":"VLOOKUP(D9,用語表!$B$3:$D$134,3)","v":"パケットフィルタリング"},null,72,{"$f":"VLOOKUP(G9,用語表!$B$3:$D$134,3)","v":"共通鍵暗号方式"},null,105,{"$f":"VLOOKUP(J9,用語表!$B$3:$D$134,3)","v":"アウトソーシング"}]
[7,{"$f":"VLOOKUP(A10,用語表!$B$3:$D$134,3)","v":"プロトタイプモデル"},null,40,{"$f":"VLOOKUP(D10,用語表!$B$3:$D$134,3)","v":"ゲートウェイ"},null,73,{"$f":"VLOOKUP(G10,用語表!$B$3:$D$134,3)","v":"公開鍵暗号方式"},null,106,{"$f":"VLOOKUP(J10,用語表!$B$3:$D$134,3)","v":"アライアンス"}]
[8,{"$f":"VLOOKUP(A11,用語表!$B$3:$D$134,3)","v":"スパイラルモデル"},null,41,{"$f":"VLOOKUP(D11,用語表!$B$3:$D$134,3)","v":"プロトコル"},null,74,{"$f":"VLOOKUP(G11,用語表!$B$3:$D$134,3)","v":"電子署名（ディジタル署名）"},null,107,{"$f":"VLOOKUP(J11,用語表!$B$3:$D$134,3)","v":"ハウジングサービス"}]
[9,{"$f":"VLOOKUP(A12,用語表!$B$3:$D$134,3)","v":"基本設計"},null,42,{"$f":"VLOOKUP(D12,用語表!$B$3:$D$134,3)","v":"TCP/IP"},null,75,{"$f":"VLOOKUP(G12,用語表!$B$3:$D$134,3)","v":"認証局（CA)"},null,108,{"$f":"VLOOKUP(J12,用語表!$B$3:$D$134,3)","v":"ホスティングサービス"}]
[10,{"$f":"VLOOKUP(A13,用語表!$B$3:$D$134,3)","v":"外部設計"},null,43,{"$f":"VLOOKUP(D13,用語表!$B$3:$D$134,3)","v":"HTTP"},null,76,{"$f":"VLOOKUP(G13,用語表!$B$3:$D$134,3)","v":"SSL"},null,109,{"$f":"VLOOKUP(J13,用語表!$B$3:$D$134,3)","v":"排他制御"}]
[11,{"$f":"VLOOKUP(A14,用語表!$B$3:$D$134,3)","v":"内部設計"},null,44,{"$f":"VLOOKUP(D14,用語表!$B$3:$D$134,3)","v":"FTP"},null,77,{"$f":"VLOOKUP(G14,用語表!$B$3:$D$134,3)","v":"HTTPS"},null,110,{"$f":"VLOOKUP(J14,用語表!$B$3:$D$134,3)","v":"ロック"}]
[12,{"$f":"VLOOKUP(A15,用語表!$B$3:$D$134,3)","v":"プログラム設計"},null,45,{"$f":"VLOOKUP(D15,用語表!$B$3:$D$134,3)","v":"POP"},null,78,{"$f":"VLOOKUP(G15,用語表!$B$3:$D$134,3)","v":"ログファイル"},null,111,{"$f":"VLOOKUP(J15,用語表!$B$3:$D$134,3)","v":"共有ロック"}]
[13,{"$f":"VLOOKUP(A16,用語表!$B$3:$D$134,3)","v":"プログラミング"},null,46,{"$f":"VLOOKUP(D16,用語表!$B$3:$D$134,3)","v":"SMTP"},null,79,{"$f":"VLOOKUP(G16,用語表!$B$3:$D$134,3)","v":"システムログ"},null,112,{"$f":"VLOOKUP(J16,用語表!$B$3:$D$134,3)","v":"占有ロック"}]
[14,{"$f":"VLOOKUP(A17,用語表!$B$3:$D$134,3)","v":"テスト"},null,47,{"$f":"VLOOKUP(D17,用語表!$B$3:$D$134,3)","v":"DHCP"},null,80,{"$f":"VLOOKUP(G17,用語表!$B$3:$D$134,3)","v":"アクセスログ"},null,113,{"$f":"VLOOKUP(J17,用語表!$B$3:$D$134,3)","v":"デッドロック"}]
[15,{"$f":"VLOOKUP(A18,用語表!$B$3:$D$134,3)","v":"単体テスト"},null,48,{"$f":"VLOOKUP(D18,用語表!$B$3:$D$134,3)","v":"MACアドレス"},null,81,{"$f":"VLOOKUP(G18,用語表!$B$3:$D$134,3)","v":"ブレーンストーミング"},null,114,{"$f":"VLOOKUP(J18,用語表!$B$3:$D$134,3)","v":"トランザクション"}]
[16,{"$f":"VLOOKUP(A19,用語表!$B$3:$D$134,3)","v":"結合テスト"},null,49,{"$f":"VLOOKUP(D19,用語表!$B$3:$D$134,3)","v":"IPアドレス"},null,82,{"$f":"VLOOKUP(G19,用語表!$B$3:$D$134,3)","v":"KJ法"},null,115,{"$f":"VLOOKUP(J19,用語表!$B$3:$D$134,3)","v":"コミット"}]
[17,{"$f":"VLOOKUP(A20,用語表!$B$3:$D$134,3)","v":"システムテスト"},null,50,{"$f":"VLOOKUP(D20,用語表!$B$3:$D$134,3)","v":"プライベートIPアドレス"},null,83,{"$f":"VLOOKUP(G20,用語表!$B$3:$D$134,3)","v":"決定表（デシジョンテーブル）"},null,116,{"$f":"VLOOKUP(J20,用語表!$B$3:$D$134,3)","v":"ジャーナルファイル"}]
[18,{"$f":"VLOOKUP(A21,用語表!$B$3:$D$134,3)","v":"保守・管理"},null,51,{"$f":"VLOOKUP(D21,用語表!$B$3:$D$134,3)","v":"グローバルIPアドレス"},null,84,{"$f":"VLOOKUP(G21,用語表!$B$3:$D$134,3)","v":"DFD"},null,117,{"$f":"VLOOKUP(J21,用語表!$B$3:$D$134,3)","v":"チェックポイント"}]
[19,{"$f":"VLOOKUP(A22,用語表!$B$3:$D$134,3)","v":"ブラックボックステスト"},null,52,{"$f":"VLOOKUP(D22,用語表!$B$3:$D$134,3)","v":"サブネットマスク"},null,85,{"$f":"VLOOKUP(G22,用語表!$B$3:$D$134,3)","v":"パート図（PERT)"},null,118,{"$f":"VLOOKUP(J22,用語表!$B$3:$D$134,3)","v":"ロールバック"}]
[20,{"$f":"VLOOKUP(A23,用語表!$B$3:$D$134,3)","v":"ホワイトボックステスト"},null,53,{"$f":"VLOOKUP(D23,用語表!$B$3:$D$134,3)","v":"ネットワークアドレス"},null,86,{"$f":"VLOOKUP(G23,用語表!$B$3:$D$134,3)","v":"クリティカルパス"},null,119,{"$f":"VLOOKUP(J23,用語表!$B$3:$D$134,3)","v":"ロールフォワード"}]
[21,{"$f":"VLOOKUP(A24,用語表!$B$3:$D$134,3)","v":"RASIS"},null,54,{"$f":"VLOOKUP(D24,用語表!$B$3:$D$134,3)","v":"ホストアドレス"},null,87,{"$f":"VLOOKUP(G24,用語表!$B$3:$D$134,3)","v":"ABC分析"},null,120,{"$f":"VLOOKUP(J24,用語表!$B$3:$D$134,3)","v":"概念設計"}]
[22,{"$f":"VLOOKUP(A25,用語表!$B$3:$D$134,3)","v":"稼働率"},null,55,{"$f":"VLOOKUP(D25,用語表!$B$3:$D$134,3)","v":"NAT"},null,88,{"$f":"VLOOKUP(G25,用語表!$B$3:$D$134,3)","v":"パレード図"},null,121,{"$f":"VLOOKUP(J25,用語表!$B$3:$D$134,3)","v":"論理設計"}]
[23,{"$f":"VLOOKUP(A26,用語表!$B$3:$D$134,3)","v":"平均故障間隔（MTBF)"},null,56,{"$f":"VLOOKUP(D26,用語表!$B$3:$D$134,3)","v":"DMZ"},null,89,{"$f":"VLOOKUP(G26,用語表!$B$3:$D$134,3)","v":"Zグラフ"},null,122,{"$f":"VLOOKUP(J26,用語表!$B$3:$D$134,3)","v":"物理設計"}]
[24,{"$f":"VLOOKUP(A27,用語表!$B$3:$D$134,3)","v":"平均修復時間（MTTR)"},null,57,{"$f":"VLOOKUP(D27,用語表!$B$3:$D$134,3)","v":"DNSサーバ"},null,90,{"$f":"VLOOKUP(G27,用語表!$B$3:$D$134,3)","v":"回帰分析"},null,123,{"$f":"VLOOKUP(J27,用語表!$B$3:$D$134,3)","v":"非正規形"}]
[25,{"$f":"VLOOKUP(A28,用語表!$B$3:$D$134,3)","v":"スループット"},null,58,{"$f":"VLOOKUP(D28,用語表!$B$3:$D$134,3)","v":"POPサーバ"},null,91,{"$f":"VLOOKUP(G28,用語表!$B$3:$D$134,3)","v":"散布図"},null,124,{"$f":"VLOOKUP(J28,用語表!$B$3:$D$134,3)","v":"第１正規化（正規形）"}]
[26,{"$f":"VLOOKUP(A29,用語表!$B$3:$D$134,3)","v":"レスポンスタイム"},null,59,{"$f":"VLOOKUP(D29,用語表!$B$3:$D$134,3)","v":"SMTPサーバ"},null,92,{"$f":"VLOOKUP(G29,用語表!$B$3:$D$134,3)","v":"正の相関"},null,125,{"$f":"VLOOKUP(J29,用語表!$B$3:$D$134,3)","v":"第２正規化（正規形）"}]
[27,{"$f":"VLOOKUP(A30,用語表!$B$3:$D$134,3)","v":"ターンアラウンドタイム"},null,60,{"$f":"VLOOKUP(D30,用語表!$B$3:$D$134,3)","v":"DHCPサーバ"},null,93,{"$f":"VLOOKUP(G30,用語表!$B$3:$D$134,3)","v":"負の相関"},null,126,{"$f":"VLOOKUP(J30,用語表!$B$3:$D$134,3)","v":"第３正規化（正規形）"}]
[28,{"$f":"VLOOKUP(A31,用語表!$B$3:$D$134,3)","v":"フォールトトレラント"},null,61,{"$f":"VLOOKUP(D31,用語表!$B$3:$D$134,3)","v":"プロキシサーバ"},null,94,{"$f":"VLOOKUP(G31,用語表!$B$3:$D$134,3)","v":"回帰直線（近似直線）"},null,127,{"$f":"VLOOKUP(J31,用語表!$B$3:$D$134,3)","v":"Ｅ－Ｒ図"}]
[29,{"$f":"VLOOKUP(A32,用語表!$B$3:$D$134,3)","v":"フェールセーフ"},null,62,{"$f":"VLOOKUP(D32,用語表!$B$3:$D$134,3)","v":"通信速度（ｂｐｓ）"},null,95,{"$f":"VLOOKUP(G32,用語表!$B$3:$D$134,3)","v":"線形計画法"},null,128,{"$f":"VLOOKUP(J32,用語表!$B$3:$D$134,3)","v":"エンティティ（実体）"}]
[30,{"$f":"VLOOKUP(A33,用語表!$B$3:$D$134,3)","v":"フェールソフト"},null,63,{"$f":"VLOOKUP(D33,用語表!$B$3:$D$134,3)","v":"転送時間"},null,96,{"$f":"VLOOKUP(G33,用語表!$B$3:$D$134,3)","v":"ヒストグラム"},null,7,{"$f":"VLOOKUP(J33,用語表!$B$3:$D$134,3)","v":"プロトタイプモデル"}]
[31,{"$f":"VLOOKUP(A34,用語表!$B$3:$D$134,3)","v":"フールプルーフ"},null,64,{"$f":"VLOOKUP(D34,用語表!$B$3:$D$134,3)","v":"伝送効率"},null,97,{"$f":"VLOOKUP(G34,用語表!$B$3:$D$134,3)","v":"管理図"},null,131,{"$f":"VLOOKUP(J34,用語表!$B$3:$D$134,3)","v":"整合性制約（参照整合性）"}]
[32,{"$f":"VLOOKUP(A35,用語表!$B$3:$D$134,3)","v":"クロック周波数"},null,65,{"$f":"VLOOKUP(D35,用語表!$B$3:$D$134,3)","v":"シンクライアント"},null,98,{"$f":"VLOOKUP(G35,用語表!$B$3:$D$134,3)","v":"特性要因図"},null,132,{"$f":"VLOOKUP(J35,用語表!$B$3:$D$134,3)","v":"副問合せ"}]
[33,{"$f":"VLOOKUP(A36,用語表!$B$3:$D$134,3)","v":"MIPS"},null,66,{"$f":"VLOOKUP(D36,用語表!$B$3:$D$134,3)","v":"NAS"},null,99,{"$f":"VLOOKUP(G36,用語表!$B$3:$D$134,3)","v":"ファンチャート"}]
[null,{"$f":"\"出題範囲=\"&C49&\":\"&C50&\" \"&\"問題番号=\"&C53&\":\"&C54","v":"出題範囲=1:10 問題番号=31:40"},null,null,null,null,null,null,null,7]
[1,{"$f":"IF(ISERROR(VLOOKUP(J38,用語表!$B$3:$C$134,2)),\"\",VLOOKUP(J38,用語表!$B$3:$C$134,2))","v":"インターネット上でのコンピュータの名前にあたるドメイン名を、住所にあたるＩＰアドレスに変換するコンピュータのこと。"},null,null,null,null,null,null,null,57,null,null,{"$f":"J38","v":57},{"$f":"IFERROR(VLOOKUP(J38,用語表!$B$3:$D$134,3,0),\"\")&\"  \"&VLOOKUP(J38,用語表!$B$3:$E$134,4,0)","v":"DNSサーバ  Domain Name System server"}]
[2,{"$f":"IF(ISERROR(VLOOKUP(J39,用語表!$B$3:$C$134,2)),\"\",VLOOKUP(J39,用語表!$B$3:$C$134,2))","v":"規格の異なったネットワーク同士を接続する場合に使われるハードウェア、ソフトウェアの総称。双方のネットワーク間のプロトコルの違いなどを調整して、接続をする。"},null,null,null,null,null,null,null,40,null,null,40,{"$f":"IFERROR(VLOOKUP(J39,用語表!$B$3:$D$134,3,0),\"\")&\"  \"&VLOOKUP(J39,用語表!$B$3:$E$134,4,0)","v":"ゲートウェイ  gateway"}]
[3,{"$f":"IF(ISERROR(VLOOKUP(J40,用語表!$B$3:$C$134,2)),\"\",VLOOKUP(J40,用語表!$B$3:$C$134,2))","v":"構内ネットワークとインターネットの境にあって、直接インターネットに接続できない内部ネットワークのコンピュータに代わってインターネットとの接続を行うコンピュータ。"},null,null,null,null,null,null,null,61,null,null,61,{"$f":"IFERROR(VLOOKUP(J40,用語表!$B$3:$D$134,3,0),\"\")&\"  \"&VLOOKUP(J40,用語表!$B$3:$E$134,4,0)","v":"プロキシサーバ  proxy server"}]
[4,{"$f":"IF(ISERROR(VLOOKUP(J41,用語表!$B$3:$C$134,2)),\"\",VLOOKUP(J41,用語表!$B$3:$C$134,2))","v":"クライアントサーバシステムで、クライアントには必要最小限の機能だけを持たせ、サーバでアプリケーションなどの管理を行うシステム構成で、情報漏えい対策としても注目されている。"},null,null,null,null,null,null,null,65,null,null,65,{"$f":"IFERROR(VLOOKUP(J41,用語表!$B$3:$D$134,3,0),\"\")&\"  \"&VLOOKUP(J41,用語表!$B$3:$E$134,4,0)","v":"シンクライアント  "}]
[5,{"$f":"IF(ISERROR(VLOOKUP(J42,用語表!$B$3:$C$134,2)),\"\",VLOOKUP(J42,用語表!$B$3:$C$134,2))","v":"スター型ネットワークで使われる集線装置のこと。各機器に接続されたケーブルはいったんここに接続され、これを介して相互に通信する。"},null,null,null,null,null,null,null,37,null,null,37,{"$f":"IFERROR(VLOOKUP(J42,用語表!$B$3:$D$134,3,0),\"\")&\"  \"&VLOOKUP(J42,用語表!$B$3:$E$134,4,0)","v":"ハブ  hub"}]
[6,{"$f":"IF(ISERROR(VLOOKUP(J43,用語表!$B$3:$C$134,2)),\"\",VLOOKUP(J43,用語表!$B$3:$C$134,2))","v":"ネットワーク上でデータを送受信するときに、１秒間に転送できるデータのビット数。モデムなどのデータ通信速度を示すのに用いられる。"},null,null,null,null,null,null,null,62,null,null,62,{"$f":"IFERROR(VLOOKUP(J43,用語表!$B$3:$D$134,3,0),\"\")&\"  \"&VLOOKUP(J43,用語表!$B$3:$E$134,4,0)","v":"通信速度（ｂｐｓ）  bit per second"}]
[7,{"$f":"IF(ISERROR(VLOOKUP(J44,用語表!$B$3:$C$134,2)),\"\",VLOOKUP(J44,用語表!$B$3:$C$134,2))","v":"電子メールをユーザのコンピュータからメールサーバへ送信するときや、メールサーバ間でメールを転送するときに用いる通信規約。"},null,null,null,null,null,null,null,46,null,null,46,{"$f":"IFERROR(VLOOKUP(J44,用語表!$B$3:$D$134,3,0),\"\")&\"  \"&VLOOKUP(J44,用語表!$B$3:$E$134,4,0)","v":"SMTP  "}]
[8,{"$f":"IF(ISERROR(VLOOKUP(J45,用語表!$B$3:$C$134,2)),\"\",VLOOKUP(J45,用語表!$B$3:$C$134,2))","v":"データをインターネット上のサーバなどから送信・転送するのにかかる時間。"},null,null,null,null,null,null,null,63,null,null,63,{"$f":"IFERROR(VLOOKUP(J45,用語表!$B$3:$D$134,3,0),\"\")&\"  \"&VLOOKUP(J45,用語表!$B$3:$E$134,4,0)","v":"転送時間  "}]
[9,{"$f":"IF(ISERROR(VLOOKUP(J46,用語表!$B$3:$C$134,2)),\"\",VLOOKUP(J46,用語表!$B$3:$C$134,2))","v":"TCP/IPのコンピュータネットワークに直接接続して使用するHDD(ハードディスクドライブ）のこと。"},null,null,null,null,null,null,null,66,null,null,66,{"$f":"IFERROR(VLOOKUP(J46,用語表!$B$3:$D$134,3,0),\"\")&\"  \"&VLOOKUP(J46,用語表!$B$3:$E$134,4,0)","v":"NAS  "}]
[10,{"$f":"IF(ISERROR(VLOOKUP(J47,用語表!$B$3:$C$134,2)),\"\",VLOOKUP(J47,用語表!$B$3:$C$134,2))","v":"ネットワークをいくつかのネットワークに区切るために用いられるビット列。ＩＰアドレスはこの値をマスキングすることで、ネットワークアドレスを求められる。"},null,null,null,null,null,null,null,52,null,null,52,{"$f":"IFERROR(VLOOKUP(J47,用語表!$B$3:$D$134,3,0),\"\")&\"  \"&VLOOKUP(J47,用語表!$B$3:$E$134,4,0)","v":"サブネットマスク  subnet mask"}]
[]
[null,"開始問題番号",1,null,null,null,null,null,null,null,null,null,null,"０　「開始問題番号」と「終了問題番号」を入力する。"]
[null,"終了問題番号",10,null,null,null,null,null,null,null,null,null,null,"1～１１１までの問題番号"]
[null,"問題数",{"$f":"C50-C49+1","v":10}]
[null,"問題印刷枚数",1,null,null,null,null,null,null,null,null,null,null,"１　問題数の行分の乱数を設定する。"]
[null,"E列　印刷開始問題番号",31,null,null,null,null,null,null,null,null,null,null,"例　問題数が３８の場合は、行５４から行９１まで"]
[null,"E列　印刷終了問題番号",40]
[null,null,null,null,null,null,null,null,null,null,null,null,null,"２　問題番号を値複写する。"]
[]
["問題数","乱数＆問題番号",null,null,"値複写（作成する問題番号）",null,null,"重複の確認（ソート後）",null,null,"重複の確認（\"重複\"の表示）",null,null,"３　「印刷開始問題番号」を入力して「問題の作成」ボタンを押す。"]
[1,{"$f":"RAND()","v":0.3030158413713111},{"$f":"RANK(B58,$B$58:$B$189)+$C$49-1","v":24},null,58,null,null,1,null,null,{"$f":"IF(COUNTIF($E$58:$E$184,E58)>1,\"重複\",\"\")","v":""}]
[2,0.90246803651208762,{"$f":"RANK(B59,$B$58:$B$189)+$C$49-1","v":3},null,41,null,null,2,null,null,{"$f":"IF(COUNTIF($E$58:$E$184,E59)>1,\"重複\",\"\")","v":""},null,null,"４　「問題印刷枚数」を入力して「問題の印刷」を押す。"]
[3,0.73739081358840819,9,null,48,null,null,3,null,null,""]
[4,0.60418923219089593,15,null,39,null,null,4,null,null,"",null,null,"５　「解答の印刷」を押す。"]
[5,0.4321058306573794,20,null,46,null,null,5,null,null,"重複"]
[6,2.6310184554968363E-2,35,null,63,null,null,6,null,null,"重複"]
[7,0.43487321113880151,19,null,66,null,null,7,null,null,"重複"]
[8,6.7565754461333838E-2,30,null,52,null,null,8,null,null,"重複"]
[9,0.88047926697237267,5,null,64,null,null,9,null,null,""]
[10,0.88380085971514466,4,null,42,null,null,10,null,null,""]
[11,0.71025911091648419,11,null,60,null,null,11,null,null,""]
[12,8.6027376281203938E-2,29,null,56,null,null,12,null,null,""]
[13,0.57068030451687513,16,null,54,null,null,13,null,null,""]
[14,0.84423785188159928,6,null,50,null,null,14,null,null,""]
[15,0.21662438096421133,26,null,68,null,null,15,null,null,""]
[16,5.6547278914412025E-2,31,null,51,null,null,16,null,null,""]
[17,5.4552596121894781E-2,32,null,69,null,null,17,null,null,""]
[18,0.18948249137714013,27,null,71,null,null,18,null,null,""]
[19,0.18802157726908886,28,null,55,null,null,19,null,null,""]
[20,0.80399214035833899,8,null,45,null,null,20,null,null,""]
[21,0.83077188934079371,7,null,59,null,null,21,null,null,""]
[22,3.5978628621192388E-2,34,null,43,null,null,22,null,null,""]
[23,0.62346721649350345,12,null,49,null,null,23,null,null,""]
[24,0.61484793006606719,13,null,47,null,null,24,null,null,""]
[25,3.1170990355766648E-5,36,null,70,null,null,25,null,null,""]
[26,0.37293388290295604,21,null,53,null,null,26,null,null,""]
[27,0.71050628294984319,10,null,44,null,null,27,null,null,""]
[28,0.22174657022360278,25,null,36,null,null,28,null,null,""]
[29,0.94385084271470021,1,null,38,null,null,29,null,null,""]
[30,4.6809776145972704E-2,33,null,67,null,null,30,null,null,""]
[31,0.93822889287832101,2,null,57,null,null,31,null,null,""]
[32,0.31848633311720898,22,null,40,null,null,32,null,null,""]
[33,0.60725456275317957,14,null,61,null,null,33,null,null,""]
[34,0.55267065143777927,18,null,65,null,null,34,null,null,""]
[35,0.55974787691989214,17,null,37,null,null,35,null,null,""]
[36,0.31581694764079626,{"$f":"RANK(B93,$B$58:$B$189)+$C$49-1","v":23},null,62,null,null,36,null,null,""]
[37,null,null,null,46,null,null,37,null,null,"重複"]
[38,null,null,null,63,null,null,38,null,null,"重複"]
[39,null,null,null,66,null,null,39,null,null,"重複"]
[40,null,null,null,52,null,null,40,null,null,"重複"]
[41,null,null,null,null,null,null,41,null,null,""]
[42,null,null,null,null,null,null,42,null,null,""]
[43,null,null,null,null,null,null,43,null,null,""]
[44,null,null,null,null,null,null,44,null,null,""]
[45,null,null,null,null,null,null,45,null,null,""]
[46,null,null,null,null,null,null,46,null,null,""]
[47,null,null,null,null,null,null,47,null,null,""]
[48,null,null,null,null,null,null,48,null,null,""]
[49,null,null,null,null,null,null,49,null,null,""]
[50,null,null,null,null,null,null,50,null,null,""]
[51,null,null,null,null,null,null,51,null,null,""]
[52,null,null,null,null,null,null,52,null,null,""]
[53,null,null,null,null,null,null,null,null,null,""]
[54,null,null,null,null,null,null,null,null,null,""]
[55,null,null,null,null,null,null,null,null,null,""]
[56,null,null,null,null,null,null,null,null,null,""]
[57,null,null,null,null,null,null,null,null,null,""]
[58,null,null,null,null,null,null,null,null,null,""]
[59,null,null,null,null,null,null,null,null,null,""]
[60,null,null,null,null,null,null,null,null,null,""]
[61,null,null,null,null,null,null,null,null,null,""]
[62,null,null,null,null,null,null,null,null,null,""]
[63,null,null,null,null,null,null,null,null,null,""]
[64,null,null,null,null,null,null,null,null,null,""]
[65,null,null,null,null,null,null,null,null,null,""]
[66,null,null,null,null,null,null,null,null,null,{"$f":"IF(COUNTIF($E$58:$E$184,E123)>1,\"重複\",\"\")","v":""}]
[67,null,null,null,null,null,null,null,null,null,""]
[68,null,null,null,null,null,null,null,null,null,""]
[69,null,null,null,null,null,null,null,null,null,""]
[70,null,null,null,null,null,null,null,null,null,""]
[71,null,null,null,null,null,null,null,null,null,""]
[72,null,null,null,null,null,null,null,null,null,""]
[73,null,null,null,null,null,null,null,null,null,""]
[74,null,null,null,null,null,null,null,null,null,""]
[75,null,null,null,null,null,null,null,null,null,""]
[76,null,null,null,null,null,null,null,null,null,""]
[77,null,null,null,null,null,null,null,null,null,""]
[78,null,null,null,null,null,null,null,null,null,""]
[79,null,null,null,null,null,null,null,null,null,""]
[80,null,null,null,null,null,null,null,null,null,""]
[81,null,null,null,null,null,null,null,null,null,""]
[82,null,null,null,null,null,null,null,null,null,""]
[83,null,null,null,null,null,null,null,null,null,""]
[84,null,null,null,null,null,null,null,null,null,""]
[85,null,null,null,null,null,null,null,null,null,""]
[86,null,null,null,null,null,null,null,null,null,""]
[87,null,null,null,null,null,null,null,null,null,""]
[88,null,null,null,null,null,null,null,null,null,""]
[89,null,null,null,null,null,null,null,null,null,""]
[90,null,null,null,null,null,null,null,null,null,""]
[91,null,null,null,null,null,null,null,null,null,""]
[92,null,null,null,null,null,null,null,null,null,""]
[93,null,null,null,null,null,null,null,null,null,""]
[94,null,null,null,null,null,null,null,null,null,""]
[95,null,null,null,null,null,null,null,null,null,""]
[96,null,null,null,null,null,null,null,null,null,""]
[97,null,null,null,null,null,null,null,null,null,""]
[98,null,null,null,null,null,null,null,null,null,""]
[99,null,null,null,null,null,null,null,null,null,""]
[100,null,null,null,null,null,null,null,null,null,""]
[101,null,null,null,null,null,null,null,null,null,""]
[102,null,null,null,null,null,null,null,null,null,""]
[103,null,null,null,null,null,null,null,null,null,""]
[104,null,null,null,null,null,null,null,null,null,""]
[105,null,null,null,null,null,null,null,null,null,""]
[106,null,null,null,null,null,null,null,null,null,""]
[107,null,null,null,null,null,null,null,null,null,""]
[108,null,null,null,null,null,null,null,null,null,""]
[109,null,null,null,null,null,null,null,null,null,""]
[110,null,null,null,null,null,null,null,null,null,""]
[111,null,null,null,null,null,null,null,null,null,""]
[112,null,null,null,null,null,null,null,null,null,""]
[113,null,null,null,null,null,null,null,null,null,""]
[114,null,null,null,null,null,null,null,null,null,""]
[115,null,null,null,null,null,null,null,null,null,""]
[116,null,null,null,null,null,null,null,null,null,""]
[117,null,null,null,null,null,null,null,null,null,""]
[118,null,null,null,null,null,null,null,null,null,""]
[119,null,null,null,null,null,null,null,null,null,""]
[120,null,null,null,null,null,null,null,null,null,""]
[121]
[122]
[123]
[124]
[125]
[126]
[127]
[128]
[129]
[130]
[131]
[132]

{"sheet":"問題作成_説明中心 (2)","index":1,"n_rows":189,"n_cols":14,"rows_kept":189,"cut":false,"hidden":false,"merged":[[48,4,54,11],[11,1,11,2],[16,1,16,2],[41,1,41,8],[42,1,42,8],[43,1,43,8],[44,1,44,8],[45,1,45,8],[46,1,46,8],[40,1,40,8],[0,1,0,10],[1,1,1,10],[37,1,37,8],[38,1,38,8],[39,1,39,8]]}
[null,"《1級》用語確認問題"]
[null,"　　　年　　　組　　　席　名前"]
[]
[133,{"$f":"VLOOKUP(A4,用語表!$B$3:$D$164,3)","v":"CEILING　（シーリング）"}]
[{"$f":"A4+1","v":134},{"$f":"VLOOKUP(A5,用語表!$B$3:$D$164,3)","v":"FLOOR　（フロア）"}]
[{"$f":"A5+1","v":135},{"$f":"VLOOKUP(A6,用語表!$B$3:$D$164,3)","v":"ABS"}]
[136,{"$f":"VLOOKUP(A7,用語表!$B$3:$D$164,3)","v":"RAND"}]
[137,{"$f":"VLOOKUP(A8,用語表!$B$3:$D$164,3)","v":"SUBTOTAL"}]
[138,{"$f":"VLOOKUP(A9,用語表!$B$3:$D$164,3)","v":"SUMIFS"}]
[139,{"$f":"VLOOKUP(A10,用語表!$B$3:$D$164,3)","v":"AVERAGEIFS"}]
[140,{"$f":"VLOOKUP(A11,用語表!$B$3:$D$164,3)","v":"CONTIFS"}]
[141,{"$f":"VLOOKUP(A12,用語表!$B$3:$D$164,3)","v":"FORECAST　（フォーキャスト）"}]
[142,{"$f":"VLOOKUP(A13,用語表!$B$3:$D$164,3)","v":"MEDIAN　（メジアン）"}]
[143,{"$f":"VLOOKUP(A14,用語表!$B$3:$D$164,3)","v":"MODE　（モード）"}]
[144,{"$f":"VLOOKUP(A15,用語表!$B$3:$D$164,3)","v":"ROW　　（ロウ）"}]
[145,{"$f":"VLOOKUP(A16,用語表!$B$3:$D$164,3)","v":"COLUMN　（コラム）"}]
[146,{"$f":"VLOOKUP(A17,用語表!$B$3:$D$164,3)","v":"SUBSTITUTE　（サブスティテュート）"}]
[147,{"$f":"VLOOKUP(A18,用語表!$B$3:$D$164,3)","v":"DSUM"}]
[148,{"$f":"VLOOKUP(A19,用語表!$B$3:$D$164,3)","v":"DAVERAGE"}]
[149,{"$f":"VLOOKUP(A20,用語表!$B$3:$D$164,3)","v":"DMAX"}]
[150,{"$f":"VLOOKUP(A21,用語表!$B$3:$D$164,3)","v":"DMIN"}]
[151,{"$f":"VLOOKUP(A22,用語表!$B$3:$D$164,3)","v":"DCOUNT"}]
[152,{"$f":"VLOOKUP(A23,用語表!$B$3:$D$164,3)","v":"DCOUNTA"}]
[153,{"$f":"VLOOKUP(A24,用語表!$B$3:$D$164,3)","v":"INSERT INTO ～ VALUES ～"}]
[154,{"$f":"VLOOKUP(A25,用語表!$B$3:$D$164,3)","v":"UPDATE ～ SET ～ WHERE～"}]
[155,{"$f":"VLOOKUP(A26,用語表!$B$3:$D$164,3)","v":"DELETE FROM ～ WHERE ～"}]
[156,{"$f":"VLOOKUP(A27,用語表!$B$3:$D$164,3)","v":"DISTINCT"}]
[157,{"$f":"VLOOKUP(A28,用語表!$B$3:$D$164,3)","v":"LIKE (ワイルドカード % _)"}]
[158,{"$f":"VLOOKUP(A29,用語表!$B$3:$D$164,3)","v":"ORDER BY (ASC  DESC)"}]
[159,{"$f":"VLOOKUP(A30,用語表!$B$3:$D$164,3)","v":"GROUP BY (HAVING)"}]
[160,{"$f":"VLOOKUP(A31,用語表!$B$3:$D$164,3)","v":"BETWEEN ～ AND ～"}]
[161,{"$f":"VLOOKUP(A32,用語表!$B$3:$D$164,3)","v":"IN (NOT IN)"}]
[162,{"$f":"VLOOKUP(A33,用語表!$B$3:$D$164,3)","v":"EXSITS (NOT EXSITS）"},null,null,null,null,null,null,null,7]
[]
[]
[]
[null,{"$f":"\"出題範囲=\"&C49&\":\"&C50&\" \"&\"問題番号=\"&C53&\":\"&C54","v":"出題範囲=133:162 問題番号=21:30"},null,null,null,null,null,null,null,7]
[1,{"$f":"IF(ISERROR(VLOOKUP(J38,用語表!$B$3:$C$164,2)),\"\",VLOOKUP(J38,用語表!$B$3:$C$164,2))","v":"回帰直線上の値を返す。"},null,null,null,null,null,null,null,141,null,null,{"$f":"J38","v":141},{"$f":"IFERROR(VLOOKUP(J38,用語表!$B$3:$D$164,3,0),\"\")&\"  \"&VLOOKUP(J38,用語表!$B$3:$E$164,4,0)","v":"FORECAST　（フォーキャスト）  "}]
[2,{"$f":"IF(ISERROR(VLOOKUP(J39,用語表!$B$3:$C$164,2)),\"\",VLOOKUP(J39,用語表!$B$3:$C$164,2))","v":"重複データを取り除く。"},null,null,null,null,null,null,null,156,null,null,156,{"$f":"IFERROR(VLOOKUP(J39,用語表!$B$3:$D$164,3,0),\"\")&\"  \"&VLOOKUP(J39,用語表!$B$3:$E$164,4,0)","v":"DISTINCT  "}]
[3,{"$f":"IF(ISERROR(VLOOKUP(J40,用語表!$B$3:$C$164,2)),\"\",VLOOKUP(J40,用語表!$B$3:$C$164,2))","v":"指定された範囲（数値）の中央値を求める。"},null,null,null,null,null,null,null,142,null,null,142,{"$f":"IFERROR(VLOOKUP(J40,用語表!$B$3:$D$164,3,0),\"\")&\"  \"&VLOOKUP(J40,用語表!$B$3:$E$164,4,0)","v":"MEDIAN　（メジアン）  "}]
[4,{"$f":"IF(ISERROR(VLOOKUP(J41,用語表!$B$3:$C$164,2)),\"\",VLOOKUP(J41,用語表!$B$3:$C$164,2))","v":"データベースの表に新しいレコード（行）を追加する。"},null,null,null,null,null,null,null,153,null,null,153,{"$f":"IFERROR(VLOOKUP(J41,用語表!$B$3:$D$164,3,0),\"\")&\"  \"&VLOOKUP(J41,用語表!$B$3:$E$164,4,0)","v":"INSERT INTO ～ VALUES ～  "}]
[5,{"$f":"IF(ISERROR(VLOOKUP(J42,用語表!$B$3:$C$164,2)),\"\",VLOOKUP(J42,用語表!$B$3:$C$164,2))","v":"データベースのレコードの内容を更新する。"},null,null,null,null,null,null,null,154,null,null,154,{"$f":"IFERROR(VLOOKUP(J42,用語表!$B$3:$D$164,3,0),\"\")&\"  \"&VLOOKUP(J42,用語表!$B$3:$E$164,4,0)","v":"UPDATE ～ SET ～ WHERE～  "}]
[6,{"$f":"IF(ISERROR(VLOOKUP(J43,用語表!$B$3:$C$164,2)),\"\",VLOOKUP(J43,用語表!$B$3:$C$164,2))","v":"データベース内の指定された対象範囲のフィールド（列）を検索し、条件を満たすレコードの平均を求める。"},null,null,null,null,null,null,null,148,null,null,148,{"$f":"IFERROR(VLOOKUP(J43,用語表!$B$3:$D$164,3,0),\"\")&\"  \"&VLOOKUP(J43,用語表!$B$3:$E$164,4,0)","v":"DAVERAGE  "}]
[7,{"$f":"IF(ISERROR(VLOOKUP(J44,用語表!$B$3:$C$164,2)),\"\",VLOOKUP(J44,用語表!$B$3:$C$164,2))","v":"指定された基準値の倍数のうち、最も近い値に数値を切り上げる。"},null,null,null,null,null,null,null,133,null,null,133,{"$f":"IFERROR(VLOOKUP(J44,用語表!$B$3:$D$164,3,0),\"\")&\"  \"&VLOOKUP(J44,用語表!$B$3:$E$164,4,0)","v":"CEILING　（シーリング）  "}]
[8,{"$f":"IF(ISERROR(VLOOKUP(J45,用語表!$B$3:$C$164,2)),\"\",VLOOKUP(J45,用語表!$B$3:$C$164,2))","v":"データベースのレコードを削除する。"},null,null,null,null,null,null,null,155,null,null,155,{"$f":"IFERROR(VLOOKUP(J45,用語表!$B$3:$D$164,3,0),\"\")&\"  \"&VLOOKUP(J45,用語表!$B$3:$E$164,4,0)","v":"DELETE FROM ～ WHERE ～  "}]
[9,{"$f":"IF(ISERROR(VLOOKUP(J46,用語表!$B$3:$C$164,2)),\"\",VLOOKUP(J46,用語表!$B$3:$C$164,2))","v":"複数の条件に一致する数値の合計を求める。"},null,null,null,null,null,null,null,138,null,null,138,{"$f":"IFERROR(VLOOKUP(J46,用語表!$B$3:$D$164,3,0),\"\")&\"  \"&VLOOKUP(J46,用語表!$B$3:$E$164,4,0)","v":"SUMIFS  "}]
[10,{"$f":"IF(ISERROR(VLOOKUP(J47,用語表!$B$3:$C$164,2)),\"\",VLOOKUP(J47,用語表!$B$3:$C$164,2))","v":"データベース内の指定された対象範囲のフィールド（列）を検索し、条件を満たすセル（数値が入力されているセル）の個数を求める。"},null,null,null,null,null,null,null,151,null,null,151,{"$f":"IFERROR(VLOOKUP(J47,用語表!$B$3:$D$164,3,0),\"\")&\"  \"&VLOOKUP(J47,用語表!$B$3:$E$164,4,0)","v":"DCOUNT  "}]
[]
[null,"開始問題番号",133,null,null,null,null,null,null,null,null,null,null,"０　「開始問題番号」と「終了問題番号」を入力する。"]
[null,"終了問題番号",162,null,null,null,null,null,null,null,null,null,null,"1～１１１までの問題番号"]
[null,"問題数",{"$f":"C50-C49+1","v":30}]
[null,"問題印刷枚数",21,null,null,null,null,null,null,null,null,null,null,"１　問題数の行分の乱数を設定する。"]
[null,"E列　印刷開始問題番号",21,null,null,null,null,null,null,null,null,null,null,"例　問題数が３８の場合は、行５４から行９１まで"]
[null,"E列　印刷終了問題番号",30]
[null,null,null,null,null,null,null,null,null,null,null,null,null,"２　問題番号を値複写する。"]
[]
["問題数","乱数＆問題番号",null,null,"値複写（作成する問題番号）",null,null,"重複の確認（ソート後）",null,null,"重複の確認（\"重複\"の表示）",null,null,"３　「印刷開始問題番号」を入力して「問題の作成」ボタンを押す。"]
[1,{"$f":"RAND()","v":2.6390776467206667E-3},{"$f":"RANK(B58,$B$58:$B$189)+$C$49-1","v":162},null,134,null,null,1,null,null,{"$f":"IF(COUNTIF($E$58:$E$184,E58)>1,\"重複\",\"\")","v":""}]
[2,0.36550249248935851,{"$f":"RANK(B59,$B$58:$B$189)+$C$49-1","v":151},null,149,null,null,2,null,null,{"$f":"IF(COUNTIF($E$58:$E$184,E59)>1,\"重複\",\"\")","v":""},null,null,"４　「問題印刷枚数」を入力して「問題の印刷」を押す。"]
[3,0.36458590705161276,152,null,159,null,null,3,null,null,""]
[4,1.1013211508078546E-2,161,null,146,null,null,4,null,null,"",null,null,"５　「解答の印刷」を押す。"]
[5,6.5977846640718818E-2,160,null,143,null,null,5,null,null,""]
[6,0.62587529399003172,144,null,161,null,null,6,null,null,""]
[7,0.41255272291671785,148,null,147,null,null,7,null,null,""]
[8,0.23269223116853122,155,null,144,null,null,8,null,null,""]
[9,0.84926560539293716,138,null,145,null,null,9,null,null,""]
[10,0.92977992360264217,136,null,152,null,null,10,null,null,""]
[11,0.40537215530544135,150,null,135,null,null,11,null,null,""]
[12,0.65106021802688374,143,null,157,null,null,12,null,null,""]
[13,0.16007571317525848,157,null,139,null,null,13,null,null,""]
[14,0.15116190685481046,158,null,162,null,null,14,null,null,""]
[15,0.4100036778077768,149,null,137,null,null,15,null,null,""]
[16,0.99386276546489194,133,null,158,null,null,16,null,null,""]
[17,0.52295516154455823,146,null,150,null,null,17,null,null,""]
[18,0.72707080710950356,140,null,140,null,null,18,null,null,""]
[19,0.16882420700147494,156,null,160,null,null,19,null,null,""]
[20,0.68978014469271121,142,null,136,null,null,20,null,null,""]
[21,0.29685224416517508,154,null,141,null,null,21,null,null,""]
[22,0.5991825539860296,145,null,156,null,null,22,null,null,""]
[23,0.3010705098140587,153,null,142,null,null,23,null,null,""]
[24,0.72875833274037016,139,null,153,null,null,24,null,null,""]
[25,7.7837817802387743E-2,159,null,154,null,null,25,null,null,""]
[26,0.88929284137095665,137,null,148,null,null,26,null,null,""]
[27,0.96522623610912528,134,null,133,null,null,27,null,null,""]
[28,0.93229319032715097,135,null,155,null,null,28,null,null,""]
[29,0.71964708108525233,141,null,138,null,null,29,null,null,""]
[30,0.48247205615740085,147,null,151,null,null,30,null,null,""]
[31,null,null,null,null,null,null,31,null,null,""]
[32,null,null,null,null,null,null,32,null,null,""]
[33,null,null,null,null,null,null,33,null,null,""]
[34,null,null,null,null,null,null,34,null,null,""]
[35,null,null,null,null,null,null,35,null,null,""]
[36,null,null,null,null,null,null,36,null,null,""]
[37,null,null,null,null,null,null,37,null,null,""]
[38,null,null,null,null,null,null,38,null,null,""]
[39,null,null,null,null,null,null,39,null,null,""]
[40,null,null,null,null,null,null,40,null,null,""]
[41,null,null,null,null,null,null,41,null,null,""]
[42,null,null,null,null,null,null,42,null,null,""]
[43,null,null,null,null,null,null,43,null,null,""]
[44,null,null,null,null,null,null,44,null,null,""]
[45,null,null,null,null,null,null,45,null,null,""]
[46,null,null,null,null,null,null,46,null,null,""]
[47,null,null,null,null,null,null,47,null,null,""]
[48,null,null,null,null,null,null,48,null,null,""]
[49,null,null,null,null,null,null,49,null,null,""]
[50,null,null,null,null,null,null,50,null,null,""]
[51,null,null,null,null,null,null,51,null,null,""]
[52,null,null,null,null,null,null,52,null,null,""]
[53,null,null,null,null,null,null,null,null,null,""]
[54,null,null,null,null,null,null,null,null,null,""]
[55,null,null,null,null,null,null,null,null,null,""]
[56,null,null,null,null,null,null,null,null,null,""]
[57,null,null,null,null,null,null,null,null,null,""]
[58,null,null,null,null,null,null,null,null,null,""]
[59,null,null,null,null,null,null,null,null,null,""]
[60,null,null,null,null,null,null,null,null,null,""]
[61,null,null,null,null,null,null,null,null,null,""]
[62,null,null,null,null,null,null,null,null,null,""]
[63,null,null,null,null,null,null,null,null,null,""]
[64,null,null,null,null,null,null,null,null,null,""]
[65,null,null,null,null,null,null,null,null,null,""]
[66,null,null,null,null,null,null,null,null,null,{"$f":"IF(COUNTIF($E$58:$E$184,E123)>1,\"重複\",\"\")","v":""}]
[67,null,null,null,null,null,null,null,null,null,""]
[68,null,null,null,null,null,null,null,null,null,""]
[69,null,null,null,null,null,null,null,null,null,""]
[70,null,null,null,null,null,null,null,null,null,""]
[71,null,null,null,null,null,null,null,null,null,""]
[72,null,null,null,null,null,null,null,null,null,""]
[73,null,null,null,null,null,null,null,null,null,""]
[74,null,null,null,null,null,null,null,null,null,""]
[75,null,null,null,null,null,null,null,null,null,""]
[76,null,null,null,null,null,null,null,null,null,""]
[77,null,null,null,null,null,null,null,null,null,""]
[78,null,null,null,null,null,null,null,null,null,""]
[79,null,null,null,null,null,null,null,null,null,""]
[80,null,null,null,null,null,null,null,null,null,""]
[81,null,null,null,null,null,null,null,null,null,""]
[82,null,null,null,null,null,null,null,null,null,""]
[83,null,null,null,null,null,null,null,null,null,""]
[84,null,null,null,null,null,null,null,null,null,""]
[85,null,null,null,null,null,null,null,null,null,""]
[86,null,null,null,null,null,null,null,null,null,""]
[87,null,null,null,null,null,null,null,null,null,""]
[88,null,null,null,null,null,null,null,null,null,""]
[89,null,null,null,null,null,null,null,null,null,""]
[90,null,null,null,null,null,null,null,null,null,""]
[91,null,null,null,null,null,null,null,null,null,""]
[92,null,null,null,null,null,null,null,null,null,""]
[93,null,null,null,null,null,null,null,null,null,""]
[94,null,null,null,null,null,null,null,null,null,""]
[95,null,null,null,null,null,null,null,null,null,""]
[96,null,null,null,null,null,null,null,null,null,""]
[97,null,null,null,null,null,null,null,null,null,""]
[98,null,null,null,null,null,null,null,null,null,""]
[99,null,null,null,null,null,null,null,null,null,""]
[100,null,null,null,null,null,null,null,null,null,""]
[101,null,null,null,null,null,null,null,null,null,""]
[102,null,null,null,null,null,null,null,null,null,""]
[103,null,null,null,null,null,null,null,null,null,""]
[104,null,null,null,null,null,null,null,null,null,""]
[105,null,null,null,null,null,null,null,null,null,""]
[106,null,null,null,null,null,null,null,null,null,""]
[107,null,null,null,null,null,null,null,null,null,""]
[108,null,null,null,null,null,null,null,null,null,""]
[109,null,null,null,null,null,null,null,null,null,""]
[110,null,null,null,null,null,null,null,null,null,""]
[111,null,null,null,null,null,null,null,null,null,""]
[112,null,null,null,null,null,null,null,null,null,""]
[113,null,null,null,null,null,null,null,null,null,""]
[114,null,null,null,null,null,null,null,null,null,""]
[115,null,null,null,null,null,null,null,null,null,""]
[116,null,null,null,null,null,null,null,null,null,""]
[117,null,null,null,null,null,null,null,null,null,""]
[118,null,null,null,null,null,null,null,null,null,""]
[119,null,null,null,null,null,null,null,null,null,""]
[120,null,null,null,null,null,null,null,null,null,""]
[121]
[122]
[123]
[124]
[125]
[126]
[127]
[128]
[129]
[130]
[131]
[132]

{"sheet":"問題作成_用語中心","index":2,"n_rows":177,"n_cols":14,"rows_kept":177,"cut":false,"hidden":false,"merged":[[48,5,54,11],[40,2,40,5],[39,2,39,5],[0,2,0,11],[1,2,1,11],[37,2,37,5],[38,2,38,5],[42,2,42,5],[41,2,41,5],[46,2,46,5],[45,2,45,5],[44,2,44,5],[43,2,43,5]]}
[null,null,"《1級》用語確認問題"]
[null,null,"　　　年　　　組　　　席　名前"]
[]
[null,1,{"$f":"VLOOKUP(B4,用語表!$B$3:$D$134,3)","v":"キャッシュメモリ"},null,{"$f":"B36+1","v":34},{"$f":"VLOOKUP(E4,用語表!$B$3:$D$134,3)","v":"UPS"},null,{"$f":"E36+1","v":67},{"$f":"VLOOKUP(H4,用語表!$B$3:$D$134,3)","v":"CGI"},null,{"$f":"H36+1","v":100},{"$f":"VLOOKUP(K4,用語表!$B$3:$D$134,3)","v":"SWOT分析（スウォット）"}]
[null,2,{"$f":"VLOOKUP(B5,用語表!$B$3:$D$134,3)","v":"ディスクキャッシュ"},null,{"$f":"E4+1","v":35},{"$f":"VLOOKUP(E5,用語表!$B$3:$D$134,3)","v":"RAID"},null,{"$f":"H4+1","v":68},{"$f":"VLOOKUP(H5,用語表!$B$3:$D$134,3)","v":"XML"},null,{"$f":"K4+1","v":101},{"$f":"VLOOKUP(K5,用語表!$B$3:$D$134,3)","v":"PPM分析"}]
[null,3,{"$f":"VLOOKUP(B6,用語表!$B$3:$D$134,3)","v":"デバイスドライバ"},null,{"$f":"E5+1","v":36},{"$f":"VLOOKUP(E6,用語表!$B$3:$D$134,3)","v":"OSI参照モデル"},null,{"$f":"H5+1","v":69},{"$f":"VLOOKUP(H6,用語表!$B$3:$D$134,3)","v":"Cookie"},null,{"$f":"K5+1","v":102},{"$f":"VLOOKUP(K6,用語表!$B$3:$D$134,3)","v":"ERP(経営資源計画)"}]
[null,4,{"$f":"VLOOKUP(B7,用語表!$B$3:$D$134,3)","v":"プラグアンドプレイ"},null,37,{"$f":"VLOOKUP(E7,用語表!$B$3:$D$134,3)","v":"ハブ"},null,70,{"$f":"VLOOKUP(H7,用語表!$B$3:$D$134,3)","v":"MIME"},null,103,{"$f":"VLOOKUP(K7,用語表!$B$3:$D$134,3)","v":"CRM(顧客関係管理)"}]
[null,5,{"$f":"VLOOKUP(B8,用語表!$B$3:$D$134,3)","v":"SSD"},null,38,{"$f":"VLOOKUP(E8,用語表!$B$3:$D$134,3)","v":"ルータ"},null,71,{"$f":"VLOOKUP(H8,用語表!$B$3:$D$134,3)","v":"VoIP"},null,104,{"$f":"VLOOKUP(K8,用語表!$B$3:$D$134,3)","v":"BPR(業務プロセス再設計)"}]
[null,6,{"$f":"VLOOKUP(B9,用語表!$B$3:$D$134,3)","v":"ウォータフォールモデル"},null,39,{"$f":"VLOOKUP(E9,用語表!$B$3:$D$134,3)","v":"パケットフィルタリング"},null,72,{"$f":"VLOOKUP(H9,用語表!$B$3:$D$134,3)","v":"共通鍵暗号方式"},null,105,{"$f":"VLOOKUP(K9,用語表!$B$3:$D$134,3)","v":"アウトソーシング"}]
[null,7,{"$f":"VLOOKUP(B10,用語表!$B$3:$D$134,3)","v":"プロトタイプモデル"},null,40,{"$f":"VLOOKUP(E10,用語表!$B$3:$D$134,3)","v":"ゲートウェイ"},null,73,{"$f":"VLOOKUP(H10,用語表!$B$3:$D$134,3)","v":"公開鍵暗号方式"},null,106,{"$f":"VLOOKUP(K10,用語表!$B$3:$D$134,3)","v":"アライアンス"}]
[null,8,{"$f":"VLOOKUP(B11,用語表!$B$3:$D$134,3)","v":"スパイラルモデル"},null,41,{"$f":"VLOOKUP(E11,用語表!$B$3:$D$134,3)","v":"プロトコル"},null,74,{"$f":"VLOOKUP(H11,用語表!$B$3:$D$134,3)","v":"電子署名（ディジタル署名）"},null,107,{"$f":"VLOOKUP(K11,用語表!$B$3:$D$134,3)","v":"ハウジングサービス"}]
[null,9,{"$f":"VLOOKUP(B12,用語表!$B$3:$D$134,3)","v":"基本設計"},null,42,{"$f":"VLOOKUP(E12,用語表!$B$3:$D$134,3)","v":"TCP/IP"},null,75,{"$f":"VLOOKUP(H12,用語表!$B$3:$D$134,3)","v":"認証局（CA)"},null,108,{"$f":"VLOOKUP(K12,用語表!$B$3:$D$134,3)","v":"ホスティングサービス"}]
[null,10,{"$f":"VLOOKUP(B13,用語表!$B$3:$D$134,3)","v":"外部設計"},null,43,{"$f":"VLOOKUP(E13,用語表!$B$3:$D$134,3)","v":"HTTP"},null,76,{"$f":"VLOOKUP(H13,用語表!$B$3:$D$134,3)","v":"SSL"},null,109,{"$f":"VLOOKUP(K13,用語表!$B$3:$D$134,3)","v":"排他制御"}]
[null,11,{"$f":"VLOOKUP(B14,用語表!$B$3:$D$134,3)","v":"内部設計"},null,44,{"$f":"VLOOKUP(E14,用語表!$B$3:$D$134,3)","v":"FTP"},null,77,{"$f":"VLOOKUP(H14,用語表!$B$3:$D$134,3)","v":"HTTPS"},null,110,{"$f":"VLOOKUP(K14,用語表!$B$3:$D$134,3)","v":"ロック"}]
[null,12,{"$f":"VLOOKUP(B15,用語表!$B$3:$D$134,3)","v":"プログラム設計"},null,45,{"$f":"VLOOKUP(E15,用語表!$B$3:$D$134,3)","v":"POP"},null,78,{"$f":"VLOOKUP(H15,用語表!$B$3:$D$134,3)","v":"ログファイル"},null,111,{"$f":"VLOOKUP(K15,用語表!$B$3:$D$134,3)","v":"共有ロック"}]
[null,13,{"$f":"VLOOKUP(B16,用語表!$B$3:$D$134,3)","v":"プログラミング"},null,46,{"$f":"VLOOKUP(E16,用語表!$B$3:$D$134,3)","v":"SMTP"},null,79,{"$f":"VLOOKUP(H16,用語表!$B$3:$D$134,3)","v":"システムログ"},null,112,{"$f":"VLOOKUP(K16,用語表!$B$3:$D$134,3)","v":"占有ロック"}]
[null,14,{"$f":"VLOOKUP(B17,用語表!$B$3:$D$134,3)","v":"テスト"},null,47,{"$f":"VLOOKUP(E17,用語表!$B$3:$D$134,3)","v":"DHCP"},null,80,{"$f":"VLOOKUP(H17,用語表!$B$3:$D$134,3)","v":"アクセスログ"},null,113,{"$f":"VLOOKUP(K17,用語表!$B$3:$D$134,3)","v":"デッドロック"}]
[null,15,{"$f":"VLOOKUP(B18,用語表!$B$3:$D$134,3)","v":"単体テスト"},null,48,{"$f":"VLOOKUP(E18,用語表!$B$3:$D$134,3)","v":"MACアドレス"},null,81,{"$f":"VLOOKUP(H18,用語表!$B$3:$D$134,3)","v":"ブレーンストーミング"},null,114,{"$f":"VLOOKUP(K18,用語表!$B$3:$D$134,3)","v":"トランザクション"}]
[null,16,{"$f":"VLOOKUP(B19,用語表!$B$3:$D$134,3)","v":"結合テスト"},null,49,{"$f":"VLOOKUP(E19,用語表!$B$3:$D$134,3)","v":"IPアドレス"},null,82,{"$f":"VLOOKUP(H19,用語表!$B$3:$D$134,3)","v":"KJ法"},null,115,{"$f":"VLOOKUP(K19,用語表!$B$3:$D$134,3)","v":"コミット"}]
[null,17,{"$f":"VLOOKUP(B20,用語表!$B$3:$D$134,3)","v":"システムテスト"},null,50,{"$f":"VLOOKUP(E20,用語表!$B$3:$D$134,3)","v":"プライベートIPアドレス"},null,83,{"$f":"VLOOKUP(H20,用語表!$B$3:$D$134,3)","v":"決定表（デシジョンテーブル）"},null,116,{"$f":"VLOOKUP(K20,用語表!$B$3:$D$134,3)","v":"ジャーナルファイル"}]
[null,18,{"$f":"VLOOKUP(B21,用語表!$B$3:$D$134,3)","v":"保守・管理"},null,51,{"$f":"VLOOKUP(E21,用語表!$B$3:$D$134,3)","v":"グローバルIPアドレス"},null,84,{"$f":"VLOOKUP(H21,用語表!$B$3:$D$134,3)","v":"DFD"},null,117,{"$f":"VLOOKUP(K21,用語表!$B$3:$D$134,3)","v":"チェックポイント"}]
[null,19,{"$f":"VLOOKUP(B22,用語表!$B$3:$D$134,3)","v":"ブラックボックステスト"},null,52,{"$f":"VLOOKUP(E22,用語表!$B$3:$D$134,3)","v":"サブネットマスク"},null,85,{"$f":"VLOOKUP(H22,用語表!$B$3:$D$134,3)","v":"パート図（PERT)"},null,118,{"$f":"VLOOKUP(K22,用語表!$B$3:$D$134,3)","v":"ロールバック"}]
[null,20,{"$f":"VLOOKUP(B23,用語表!$B$3:$D$134,3)","v":"ホワイトボックステスト"},null,53,{"$f":"VLOOKUP(E23,用語表!$B$3:$D$134,3)","v":"ネットワークアドレス"},null,86,{"$f":"VLOOKUP(H23,用語表!$B$3:$D$134,3)","v":"クリティカルパス"},null,119,{"$f":"VLOOKUP(K23,用語表!$B$3:$D$134,3)","v":"ロールフォワード"}]
[null,21,{"$f":"VLOOKUP(B24,用語表!$B$3:$D$134,3)","v":"RASIS"},null,54,{"$f":"VLOOKUP(E24,用語表!$B$3:$D$134,3)","v":"ホストアドレス"},null,87,{"$f":"VLOOKUP(H24,用語表!$B$3:$D$134,3)","v":"ABC分析"},null,120,{"$f":"VLOOKUP(K24,用語表!$B$3:$D$134,3)","v":"概念設計"}]
[null,22,{"$f":"VLOOKUP(B25,用語表!$B$3:$D$134,3)","v":"稼働率"},null,55,{"$f":"VLOOKUP(E25,用語表!$B$3:$D$134,3)","v":"NAT"},null,88,{"$f":"VLOOKUP(H25,用語表!$B$3:$D$134,3)","v":"パレード図"},null,121,{"$f":"VLOOKUP(K25,用語表!$B$3:$D$134,3)","v":"論理設計"}]
[null,23,{"$f":"VLOOKUP(B26,用語表!$B$3:$D$134,3)","v":"平均故障間隔（MTBF)"},null,56,{"$f":"VLOOKUP(E26,用語表!$B$3:$D$134,3)","v":"DMZ"},null,89,{"$f":"VLOOKUP(H26,用語表!$B$3:$D$134,3)","v":"Zグラフ"},null,122,{"$f":"VLOOKUP(K26,用語表!$B$3:$D$134,3)","v":"物理設計"}]
[null,24,{"$f":"VLOOKUP(B27,用語表!$B$3:$D$134,3)","v":"平均修復時間（MTTR)"},null,57,{"$f":"VLOOKUP(E27,用語表!$B$3:$D$134,3)","v":"DNSサーバ"},null,90,{"$f":"VLOOKUP(H27,用語表!$B$3:$D$134,3)","v":"回帰分析"},null,123,{"$f":"VLOOKUP(K27,用語表!$B$3:$D$134,3)","v":"非正規形"}]
[null,25,{"$f":"VLOOKUP(B28,用語表!$B$3:$D$134,3)","v":"スループット"},null,58,{"$f":"VLOOKUP(E28,用語表!$B$3:$D$134,3)","v":"POPサーバ"},null,91,{"$f":"VLOOKUP(H28,用語表!$B$3:$D$134,3)","v":"散布図"},null,124,{"$f":"VLOOKUP(K28,用語表!$B$3:$D$134,3)","v":"第１正規化（正規形）"}]
[null,26,{"$f":"VLOOKUP(B29,用語表!$B$3:$D$134,3)","v":"レスポンスタイム"},null,59,{"$f":"VLOOKUP(E29,用語表!$B$3:$D$134,3)","v":"SMTPサーバ"},null,92,{"$f":"VLOOKUP(H29,用語表!$B$3:$D$134,3)","v":"正の相関"},null,125,{"$f":"VLOOKUP(K29,用語表!$B$3:$D$134,3)","v":"第２正規化（正規形）"}]
[null,27,{"$f":"VLOOKUP(B30,用語表!$B$3:$D$134,3)","v":"ターンアラウンドタイム"},null,60,{"$f":"VLOOKUP(E30,用語表!$B$3:$D$134,3)","v":"DHCPサーバ"},null,93,{"$f":"VLOOKUP(H30,用語表!$B$3:$D$134,3)","v":"負の相関"},null,126,{"$f":"VLOOKUP(K30,用語表!$B$3:$D$134,3)","v":"第３正規化（正規形）"}]
[null,28,{"$f":"VLOOKUP(B31,用語表!$B$3:$D$134,3)","v":"フォールトトレラント"},null,61,{"$f":"VLOOKUP(E31,用語表!$B$3:$D$134,3)","v":"プロキシサーバ"},null,94,{"$f":"VLOOKUP(H31,用語表!$B$3:$D$134,3)","v":"回帰直線（近似直線）"},null,127,{"$f":"VLOOKUP(K31,用語表!$B$3:$D$134,3)","v":"Ｅ－Ｒ図"}]
[null,29,{"$f":"VLOOKUP(B32,用語表!$B$3:$D$134,3)","v":"フェールセーフ"},null,62,{"$f":"VLOOKUP(E32,用語表!$B$3:$D$134,3)","v":"通信速度（ｂｐｓ）"},null,95,{"$f":"VLOOKUP(H32,用語表!$B$3:$D$134,3)","v":"線形計画法"},null,128,{"$f":"VLOOKUP(K32,用語表!$B$3:$D$134,3)","v":"エンティティ（実体）"}]
[null,30,{"$f":"VLOOKUP(B33,用語表!$B$3:$D$134,3)","v":"フェールソフト"},null,63,{"$f":"VLOOKUP(E33,用語表!$B$3:$D$134,3)","v":"転送時間"},null,96,{"$f":"VLOOKUP(H33,用語表!$B$3:$D$134,3)","v":"ヒストグラム"},null,129,{"$f":"VLOOKUP(K33,用語表!$B$3:$D$134,3)","v":"アトリビュート（属性）"}]
[null,31,{"$f":"VLOOKUP(B34,用語表!$B$3:$D$134,3)","v":"フールプルーフ"},null,64,{"$f":"VLOOKUP(E34,用語表!$B$3:$D$134,3)","v":"伝送効率"},null,97,{"$f":"VLOOKUP(H34,用語表!$B$3:$D$134,3)","v":"管理図"},null,130,{"$f":"VLOOKUP(K34,用語表!$B$3:$D$134,3)","v":"リレーションシップ（関係）"}]
[null,32,{"$f":"VLOOKUP(B35,用語表!$B$3:$D$134,3)","v":"クロック周波数"},null,65,{"$f":"VLOOKUP(E35,用語表!$B$3:$D$134,3)","v":"シンクライアント"},null,98,{"$f":"VLOOKUP(H35,用語表!$B$3:$D$134,3)","v":"特性要因図"},null,131,{"$f":"VLOOKUP(K35,用語表!$B$3:$D$134,3)","v":"整合性制約（参照整合性）"}]
[null,33,{"$f":"VLOOKUP(B36,用語表!$B$3:$D$134,3)","v":"MIPS"},null,66,{"$f":"VLOOKUP(E36,用語表!$B$3:$D$134,3)","v":"NAS"},null,99,{"$f":"VLOOKUP(H36,用語表!$B$3:$D$134,3)","v":"ファンチャート"},null,132,{"$f":"VLOOKUP(K36,用語表!$B$3:$D$134,3)","v":"副問合せ"}]
[null,null,{"$f":"\"出題範囲=\"&D49&\":\"&D50","v":"出題範囲=1:111"},null,null,null,null,null,null,null,7,null,null,"答え"]
[57,"ア",{"$f":"IF(ISERROR(VLOOKUP(A38,用語表!$B$3:$C$134,2)),\"\",VLOOKUP(A38,用語表!$B$3:$C$134,2))","v":"インターネット上でのコンピュータの名前にあたるドメイン名を、住所にあたるＩＰアドレスに変換するコンピュータのこと。"},null,null,null,5,1,{"$f":"IF(ISERROR(VLOOKUP(G38,用語表!$B$3:$D$134,3,0)),\"\",VLOOKUP(G38,用語表!$B$3:$D$134,3,0))","v":"SSD"},null,null,null,null,{"$f":"VLOOKUP(G38,$A$38:$B$47,2,0)","v":"キ"}]
[42,"イ",{"$f":"IF(ISERROR(VLOOKUP(A39,用語表!$B$3:$C$134,2)),\"\",VLOOKUP(A39,用語表!$B$3:$C$134,2))","v":"現在最も普及しているインターネットやイントラネットの標準プロトコル。"},null,null,null,20,2,{"$f":"IF(ISERROR(VLOOKUP(G39,用語表!$B$3:$D$134,3,0)),\"\",VLOOKUP(G39,用語表!$B$3:$D$134,3,0))","v":"ホワイトボックステスト"},null,null,null,null,{"$f":"VLOOKUP(G39,$A$38:$B$47,2,0)","v":"エ"}]
[70,"ウ",{"$f":"IF(ISERROR(VLOOKUP(A40,用語表!$B$3:$C$134,2)),\"\",VLOOKUP(A40,用語表!$B$3:$C$134,2))","v":"各国の言葉やや画像、音声、動画など、形式の異なるさまざまなデータを電子メールで扱うための規格。"},null,null,null,42,3,{"$f":"IF(ISERROR(VLOOKUP(G40,用語表!$B$3:$D$134,3,0)),\"\",VLOOKUP(G40,用語表!$B$3:$D$134,3,0))","v":"TCP/IP"},null,null,null,null,"イ"]
[20,"エ",{"$f":"IF(ISERROR(VLOOKUP(A41,用語表!$B$3:$C$134,2)),\"\",VLOOKUP(A41,用語表!$B$3:$C$134,2))","v":"システム内部の構造を理解した上で、それら一つ一つが設計した通りに動作しているかを確認するプログラムのテスト方法。"},null,null,null,48,4,{"$f":"IF(ISERROR(VLOOKUP(G41,用語表!$B$3:$D$134,3,0)),\"\",VLOOKUP(G41,用語表!$B$3:$D$134,3,0))","v":"MACアドレス"},null,null,null,null,"オ"]
[48,"オ",{"$f":"IF(ISERROR(VLOOKUP(A42,用語表!$B$3:$C$134,2)),\"\",VLOOKUP(A42,用語表!$B$3:$C$134,2))","v":"NIC（ネットワークフェースカード）やルータなどのネットワーク機器に割り当てられているハードウェア固有の番号のこと。"},null,null,null,55,5,{"$f":"IF(ISERROR(VLOOKUP(G42,用語表!$B$3:$D$134,3,0)),\"\",VLOOKUP(G42,用語表!$B$3:$D$134,3,0))","v":"NAT"},null,null,null,null,"カ"]
[55,"カ",{"$f":"IF(ISERROR(VLOOKUP(A43,用語表!$B$3:$C$134,2)),\"\",VLOOKUP(A43,用語表!$B$3:$C$134,2))","v":"インターネットのグローバルアドレスとプライベートアドレスを１対１で結びつけて相互に変換し、LAN内のコンピュータがインターネットを利用できるようにするためのアドレス変換の技術。"},null,null,null,57,6,{"$f":"IF(ISERROR(VLOOKUP(G43,用語表!$B$3:$D$134,3,0)),\"\",VLOOKUP(G43,用語表!$B$3:$D$134,3,0))","v":"DNSサーバ"},null,null,null,null,"ア"]
[5,"キ",{"$f":"IF(ISERROR(VLOOKUP(A44,用語表!$B$3:$C$134,2)),\"\",VLOOKUP(A44,用語表!$B$3:$C$134,2))","v":"HDD(ハードディスクドライブ）に比べて軽量小型で読み書き速度も速く、電力の消費も少ない。半導体メモリ（フラッシュメモリ）を使用した記憶装置。"},null,null,null,59,7,{"$f":"IF(ISERROR(VLOOKUP(G44,用語表!$B$3:$D$134,3,0)),\"\",VLOOKUP(G44,用語表!$B$3:$D$134,3,0))","v":"SMTPサーバ"},null,null,null,null,"ケ"]
[106,"ク",{"$f":"IF(ISERROR(VLOOKUP(A45,用語表!$B$3:$C$134,2)),\"\",VLOOKUP(A45,用語表!$B$3:$C$134,2))","v":"複数の企業が互いに経済的なメリットを期待するために、企業が連携して協力体制を構築すること。"},null,null,null,70,8,{"$f":"IF(ISERROR(VLOOKUP(G45,用語表!$B$3:$D$134,3,0)),\"\",VLOOKUP(G45,用語表!$B$3:$D$134,3,0))","v":"MIME"},null,null,null,null,"ウ"]
[59,"ケ",{"$f":"IF(ISERROR(VLOOKUP(A46,用語表!$B$3:$C$134,2)),\"\",VLOOKUP(A46,用語表!$B$3:$C$134,2))","v":"電子メールを送信するためのサーバのこと。ユーザから送信されたメールを受け取り、送信先を探して、そこに送信する。"},null,null,null,99,9,{"$f":"IF(ISERROR(VLOOKUP(G46,用語表!$B$3:$D$134,3,0)),\"\",VLOOKUP(G46,用語表!$B$3:$D$134,3,0))","v":"ファンチャート"},null,null,null,null,"コ"]
[99,"コ",{"$f":"IF(ISERROR(VLOOKUP(A47,用語表!$B$3:$C$134,2)),\"\",VLOOKUP(A47,用語表!$B$3:$C$134,2))","v":"ある時点のデータを基準に、その後のデータの変動を比率で表す折れ線グラフのこと。"},null,null,null,106,10,{"$f":"IF(ISERROR(VLOOKUP(G47,用語表!$B$3:$D$134,3,0)),\"\",VLOOKUP(G47,用語表!$B$3:$D$134,3,0))","v":"アライアンス"},null,null,null,null,"ク"]
[]
[null,null,"開始問題番号",1,null,null,null,null,null,null,null,null,null,"０　「開始問題番号」と「終了問題番号」を入力する。"]
[null,null,"終了問題番号",111,null,null,null,null,null,null,null,null,null,"1～１１１までの問題番号"]
[null,null,"問題数",{"$f":"D50-D49+1","v":111}]
[null,null,"問題印刷枚数",1,null,null,null,null,null,null,null,null,null,"１　問題数の行分の乱数を設定する。"]
[null,null,"E列　印刷開始問題番号",1,null,null,null,null,null,null,null,null,null,"例　問題数が３８の場合は、行５４から行９１まで"]
[null,null,"E列　印刷終了問題番号",10]
[null,null,null,null,null,null,null,null,null,null,null,null,null,"２　問題番号を値複写、用語（ソート）に複写する。"]
[]
[null,"問題数","乱数＆問題番号",null,null,"値複写（作成する問題番号）",null,null,"用語（ソート）",null,null,"重複の確認（\"重複\"の表示）",null,"３　「印刷開始問題番号」を入力して「問題の作成」ボタンを押す。"]
[null,1,{"$f":"RAND()","v":0.71588056182781767},{"$f":"RANK(C58,$C$58:$C$168)+$D$49-1","v":30},null,57,null,null,5,null,null,{"$f":"IF(COUNTIF($F$58:F97,F58)>1,\"重複\",\"\")","v":""}]
[null,2,0.44859577054057254,{"$f":"RANK(C59,$C$58:$C$168)+$D$49-1","v":59},null,42,null,null,20,null,null,{"$f":"IF(COUNTIF($F$58:F98,F59)>1,\"重複\",\"\")","v":""},null,"４　「問題印刷枚数」を入力して「問題の印刷」を押す。"]
[null,3,0.4720988512383899,56,null,70,null,null,42,null,null,{"$f":"IF(COUNTIF($F$58:F99,F60)>1,\"重複\",\"\")","v":""}]
[null,4,0.17511034757907495,88,null,20,null,null,48,null,null,{"$f":"IF(COUNTIF($F$58:F100,F61)>1,\"重複\",\"\")","v":""},null,"５　「解答の印刷」を押す。"]
[null,5,0.77498116363328606,25,null,48,null,null,55,null,null,{"$f":"IF(COUNTIF($F$58:F101,F62)>1,\"重複\",\"\")","v":""}]
[null,6,0.34633570334610553,71,null,55,null,null,57,null,null,{"$f":"IF(COUNTIF($F$58:F102,F63)>1,\"重複\",\"\")","v":""}]
[null,7,9.042768079713126E-2,105,null,5,null,null,59,null,null,{"$f":"IF(COUNTIF($F$58:F103,F64)>1,\"重複\",\"\")","v":""}]
[null,8,0.14669628595559336,93,null,106,null,null,70,null,null,{"$f":"IF(COUNTIF($F$58:F104,F65)>1,\"重複\",\"\")","v":""}]
[null,9,0.21230353172817773,84,null,59,null,null,99,null,null,{"$f":"IF(COUNTIF($F$58:F105,F66)>1,\"重複\",\"\")","v":""}]
[null,10,0.8515628134690858,19,null,99,null,null,106,null,null,{"$f":"IF(COUNTIF($F$58:F106,F67)>1,\"重複\",\"\")","v":""}]
[null,11,0.47138271224738026,57,null,72,null,null,72,null,null,{"$f":"IF(COUNTIF($F$58:F107,F68)>1,\"重複\",\"\")","v":""}]
[null,12,0.57685236428149167,47,null,107,null,null,107,null,null,{"$f":"IF(COUNTIF($F$58:F108,F69)>1,\"重複\",\"\")","v":""}]
[null,13,0.86997105981992717,16,null,92,null,null,92,null,null,{"$f":"IF(COUNTIF($F$58:F109,F70)>1,\"重複\",\"\")","v":""}]
[null,14,0.31501144202882347,75,null,2,null,null,2,null,null,{"$f":"IF(COUNTIF($F$58:F110,F71)>1,\"重複\",\"\")","v":""}]
[null,15,0.2532362304883875,80,null,88,null,null,88,null,null,{"$f":"IF(COUNTIF($F$58:F111,F72)>1,\"重複\",\"\")","v":""}]
[null,16,3.9914610520501714E-3,111,null,94,null,null,94,null,null,{"$f":"IF(COUNTIF($F$58:F112,F73)>1,\"重複\",\"\")","v":""}]
[null,17,0.13515244606725785,97,null,53,null,null,53,null,null,{"$f":"IF(COUNTIF($F$58:F113,F74)>1,\"重複\",\"\")","v":""}]
[null,18,0.76114974752290077,26,null,52,null,null,52,null,null,{"$f":"IF(COUNTIF($F$58:F114,F75)>1,\"重複\",\"\")","v":""}]
[null,19,0.64252044823422583,36,null,36,null,null,36,null,null,{"$f":"IF(COUNTIF($F$58:F115,F76)>1,\"重複\",\"\")","v":""}]
[null,20,0.2605907773776005,78,null,9,null,null,9,null,null,{"$f":"IF(COUNTIF($F$58:F116,F77)>1,\"重複\",\"\")","v":""}]
[null,21,0.77590716286275641,24,null,54,null,null,54,null,null,{"$f":"IF(COUNTIF($F$58:F117,F78)>1,\"重複\",\"\")","v":""}]
[null,22,0.34116408321745439,72,null,27,null,null,27,null,null,{"$f":"IF(COUNTIF($F$58:F118,F79)>1,\"重複\",\"\")","v":""}]
[null,23,0.13826753007738601,95,null,10,null,null,10,null,null,{"$f":"IF(COUNTIF($F$58:F119,F80)>1,\"重複\",\"\")","v":""}]
[null,24,0.5521610937014193,51,null,65,null,null,65,null,null,{"$f":"IF(COUNTIF($F$58:F120,F81)>1,\"重複\",\"\")","v":""}]
[null,25,6.4184840770318941E-2,108,null,58,null,null,58,null,null,{"$f":"IF(COUNTIF($F$58:F121,F82)>1,\"重複\",\"\")","v":""}]
[null,26,0.31666138007993572,74,null,8,null,null,8,null,null,{"$f":"IF(COUNTIF($F$58:F122,F83)>1,\"重複\",\"\")","v":""}]
[null,27,5.0811130820859196E-2,109,null,46,null,null,46,null,null,{"$f":"IF(COUNTIF($F$58:F123,F84)>1,\"重複\",\"\")","v":""}]
[null,28,0.11216038724392241,101,null,37,null,null,37,null,null,{"$f":"IF(COUNTIF($F$58:F124,F85)>1,\"重複\",\"\")","v":""}]
[null,29,0.18382730906337597,87,null,45,null,null,45,null,null,{"$f":"IF(COUNTIF($F$58:F125,F86)>1,\"重複\",\"\")","v":""}]
[null,30,0.57022004956820749,49,null,25,null,null,25,null,null,{"$f":"IF(COUNTIF($F$58:F126,F87)>1,\"重複\",\"\")","v":""}]
[null,31,8.5810884555918343E-2,107,null,83,null,null,83,null,null,{"$f":"IF(COUNTIF($F$58:F127,F88)>1,\"重複\",\"\")","v":""}]
[null,32,0.6054045553809374,43,null,85,null,null,85,null,null,{"$f":"IF(COUNTIF($F$58:F128,F89)>1,\"重複\",\"\")","v":""}]
[null,33,0.28126891470749715,77,null,24,null,null,24,null,null,{"$f":"IF(COUNTIF($F$58:F129,F90)>1,\"重複\",\"\")","v":""}]
[null,34,0.13539874885854086,96,null,98,null,null,98,null,null,{"$f":"IF(COUNTIF($F$58:F130,F91)>1,\"重複\",\"\")","v":""}]
[null,35,0.24431022219961873,81,null,96,null,null,96,null,null,{"$f":"IF(COUNTIF($F$58:F131,F92)>1,\"重複\",\"\")","v":""}]
[null,36,9.5829533709896553E-2,104,null,86,null,null,86,null,null,{"$f":"IF(COUNTIF($F$58:F132,F93)>1,\"重複\",\"\")","v":""}]
[null,37,0.99681629778770486,2,null,21,null,null,21,null,null,{"$f":"IF(COUNTIF($F$58:F133,F94)>1,\"重複\",\"\")","v":""}]
[null,38,3.6388065537942271E-2,110,null,108,null,null,108,null,null,{"$f":"IF(COUNTIF($F$58:F134,F95)>1,\"重複\",\"\")","v":""}]
[null,39,0.66931754258991272,32,null,62,null,null,62,null,null,{"$f":"IF(COUNTIF($F$58:F135,F96)>1,\"重複\",\"\")","v":""}]
[null,40,0.38113284591160002,67,null,71,null,null,71,null,null,{"$f":"IF(COUNTIF($F$58:F136,F97)>1,\"重複\",\"\")","v":""}]
[null,41,0.21898161684323991,83,null,56,null,null,56,null,null,{"$f":"IF(COUNTIF($F$58:F137,F98)>1,\"重複\",\"\")","v":""}]
[null,42,0.73342635000479028,28,null,3,null,null,3,null,null,{"$f":"IF(COUNTIF($F$58:F138,F99)>1,\"重複\",\"\")","v":""}]
[null,43,0.36277533822078833,70,null,67,null,null,67,null,null,{"$f":"IF(COUNTIF($F$58:F139,F100)>1,\"重複\",\"\")","v":""}]
[null,44,0.89281094194877342,12,null,7,null,null,7,null,null,{"$f":"IF(COUNTIF($F$58:F140,F101)>1,\"重複\",\"\")","v":""}]
[null,45,0.19545181089308516,85,null,33,null,null,33,null,null,{"$f":"IF(COUNTIF($F$58:F141,F102)>1,\"重複\",\"\")","v":""}]
[null,46,0.60598591928658974,42,null,16,null,null,16,null,null,{"$f":"IF(COUNTIF($F$58:F142,F103)>1,\"重複\",\"\")","v":""}]
[null,47,0.16934769924612081,90,null,64,null,null,64,null,null,{"$f":"IF(COUNTIF($F$58:F143,F104)>1,\"重複\",\"\")","v":""}]
[null,48,0.97408322581390661,7,null,12,null,null,12,null,null,{"$f":"IF(COUNTIF($F$58:F144,F105)>1,\"重複\",\"\")","v":""}]
[null,49,0.22661940420796789,82,null,69,null,null,69,null,null,{"$f":"IF(COUNTIF($F$58:F145,F106)>1,\"重複\",\"\")","v":""}]
[null,50,0.79216557564907564,23,null,19,null,null,19,null,null,{"$f":"IF(COUNTIF($F$58:F146,F107)>1,\"重複\",\"\")","v":""}]
[null,51,0.98175690941582328,3,null,79,null,null,79,null,null,{"$f":"IF(COUNTIF($F$58:F147,F108)>1,\"重複\",\"\")","v":""}]
[null,52,0.92339032063465543,11,null,40,null,null,40,null,null,{"$f":"IF(COUNTIF($F$58:F148,F109)>1,\"重複\",\"\")","v":""}]
[null,53,0.30240562082328004,76,null,61,null,null,61,null,null,{"$f":"IF(COUNTIF($F$58:F149,F110)>1,\"重複\",\"\")","v":""}]
[null,54,0.51817578819348586,54,null,18,null,null,18,null,null,{"$f":"IF(COUNTIF($F$58:F150,F111)>1,\"重複\",\"\")","v":""}]
[null,55,0.63956802913399169,37,null,30,null,null,30,null,null,{"$f":"IF(COUNTIF($F$58:F151,F112)>1,\"重複\",\"\")","v":""}]
[null,56,0.38964859773732063,66,null,100,null,null,100,null,null,{"$f":"IF(COUNTIF($F$58:F152,F113)>1,\"重複\",\"\")","v":""}]
[null,57,0.13058990699920592,98,null,47,null,null,47,null,null,{"$f":"IF(COUNTIF($F$58:F153,F114)>1,\"重複\",\"\")","v":""}]
[null,58,0.43657195293878748,60,null,105,null,null,105,null,null,{"$f":"IF(COUNTIF($F$58:F154,F115)>1,\"重複\",\"\")","v":""}]
[null,59,0.97862974978880335,5,null,82,null,null,82,null,null,{"$f":"IF(COUNTIF($F$58:F155,F116)>1,\"重複\",\"\")","v":""}]
[null,60,0.17054756826090856,89,null,90,null,null,90,null,null,{"$f":"IF(COUNTIF($F$58:F156,F117)>1,\"重複\",\"\")","v":""}]
[null,61,0.43579882544101545,61,null,44,null,null,44,null,null,{"$f":"IF(COUNTIF($F$58:F157,F118)>1,\"重複\",\"\")","v":""}]
[null,62,0.57957970529124281,45,null,93,null,null,93,null,null,{"$f":"IF(COUNTIF($F$58:F158,F119)>1,\"重複\",\"\")","v":""}]
[null,63,8.9972080965361467E-2,106,null,104,null,null,104,null,null,{"$f":"IF(COUNTIF($F$58:F159,F120)>1,\"重複\",\"\")","v":""}]
[null,64,0.79249238879571493,22,null,91,null,null,91,null,null,{"$f":"IF(COUNTIF($F$58:F160,F121)>1,\"重複\",\"\")","v":""}]
[null,65,{"$f":"RAND()","v":0.36539212496083606},69,null,81,null,null,81,null,null,{"$f":"IF(COUNTIF($F$58:F161,F122)>1,\"重複\",\"\")","v":""}]
[null,66,0.79369548267038559,{"$f":"RANK(C123,$C$58:$C$168)+$D$49-1","v":21},null,17,null,null,17,null,null,{"$f":"IF(COUNTIF($F$58:F162,F123)>1,\"重複\",\"\")","v":""}]
[null,67,0.42754830877096173,64,null,43,null,null,43,null,null,{"$f":"IF(COUNTIF($F$58:F163,F124)>1,\"重複\",\"\")","v":""}]
[null,68,0.53344042601114361,52,null,60,null,null,60,null,null,{"$f":"IF(COUNTIF($F$58:F164,F125)>1,\"重複\",\"\")","v":""}]
[null,69,0.16412108951920557,91,null,38,null,null,38,null,null,{"$f":"IF(COUNTIF($F$58:F165,F126)>1,\"重複\",\"\")","v":""}]
[null,70,0.98053215938633564,4,null,76,null,null,76,null,null,{"$f":"IF(COUNTIF($F$58:F166,F127)>1,\"重複\",\"\")","v":""}]
[null,71,0.56319946753295835,50,null,101,null,null,101,null,null,{"$f":"IF(COUNTIF($F$58:F167,F128)>1,\"重複\",\"\")","v":""}]
[null,72,0.72765973822649066,29,null,4,null,null,4,null,null,{"$f":"IF(COUNTIF($F$58:F168,F129)>1,\"重複\",\"\")","v":""}]
[null,73,0.10241859125756325,103,null,13,null,null,13,null,null,{"$f":"IF(COUNTIF($F$58:F169,F130)>1,\"重複\",\"\")","v":""}]
[null,74,0.65768012720352975,34,null,29,null,null,29,null,null,{"$f":"IF(COUNTIF($F$58:F170,F131)>1,\"重複\",\"\")","v":""}]
[null,75,0.9771760107433477,6,null,89,null,null,89,null,null,{"$f":"IF(COUNTIF($F$58:F171,F132)>1,\"重複\",\"\")","v":""}]
[null,76,0.62871351605795001,38,null,109,null,null,109,null,null,{"$f":"IF(COUNTIF($F$58:F172,F133)>1,\"重複\",\"\")","v":""}]
[null,77,0.92346451162236931,10,null,11,null,null,11,null,null,{"$f":"IF(COUNTIF($F$58:F173,F134)>1,\"重複\",\"\")","v":""}]
[null,78,0.42777776578253279,63,null,31,null,null,31,null,null,{"$f":"IF(COUNTIF($F$58:F174,F135)>1,\"重複\",\"\")","v":""}]
[null,79,0.19130156706193258,86,null,111,null,null,111,null,null,{"$f":"IF(COUNTIF($F$58:F175,F136)>1,\"重複\",\"\")","v":""}]
[null,80,0.92840123548397269,9,null,66,null,null,66,null,null,{"$f":"IF(COUNTIF($F$58:F176,F137)>1,\"重複\",\"\")","v":""}]
[null,81,0.66714042694448428,33,null,28,null,null,28,null,null,{"$f":"IF(COUNTIF($F$58:F177,F138)>1,\"重複\",\"\")","v":""}]
[null,82,0.42779489363637435,62,null,34,null,null,34,null,null,{"$f":"IF(COUNTIF($F$58:F178,F139)>1,\"重複\",\"\")","v":""}]
[null,83,0.12658471564907714,99,null,23,null,null,23,null,null,{"$f":"IF(COUNTIF($F$58:F179,F140)>1,\"重複\",\"\")","v":""}]
[null,84,0.48146655491811641,55,null,50,null,null,50,null,null,{"$f":"IF(COUNTIF($F$58:F180,F141)>1,\"重複\",\"\")","v":""}]
[null,85,0.88467429099428829,14,null,77,null,null,77,null,null,{"$f":"IF(COUNTIF($F$58:F181,F142)>1,\"重複\",\"\")","v":""}]
[null,86,0.70133540798557714,31,null,1,null,null,1,null,null,{"$f":"IF(COUNTIF($F$58:F182,F143)>1,\"重複\",\"\")","v":""}]
[null,87,0.57258736696654988,48,null,51,null,null,51,null,null,{"$f":"IF(COUNTIF($F$58:F183,F144)>1,\"重複\",\"\")","v":""}]
[null,88,0.64790134200545602,35,null,14,null,null,14,null,null,{"$f":"IF(COUNTIF($F$58:F184,F145)>1,\"重複\",\"\")","v":""}]
[null,89,0.42208815139882072,65,null,74,null,null,74,null,null,{"$f":"IF(COUNTIF($F$58:F185,F146)>1,\"重複\",\"\")","v":""}]
[null,90,0.45228941106495191,58,null,84,null,null,84,null,null,{"$f":"IF(COUNTIF($F$58:F186,F147)>1,\"重複\",\"\")","v":""}]
[null,91,0.57875523492159553,46,null,63,null,null,63,null,null,{"$f":"IF(COUNTIF($F$58:F187,F148)>1,\"重複\",\"\")","v":""}]
[null,92,0.8873858669354584,13,null,6,null,null,6,null,null,{"$f":"IF(COUNTIF($F$58:F188,F149)>1,\"重複\",\"\")","v":""}]
[null,93,0.95083333147411919,8,null,80,null,null,80,null,null,{"$f":"IF(COUNTIF($F$58:F189,F150)>1,\"重複\",\"\")","v":""}]
[null,94,0.83225474445073244,20,null,39,null,null,39,null,null,{"$f":"IF(COUNTIF($F$58:F190,F151)>1,\"重複\",\"\")","v":""}]
[null,95,0.85717841456778232,17,null,49,null,null,49,null,null,{"$f":"IF(COUNTIF($F$58:F191,F152)>1,\"重複\",\"\")","v":""}]
[null,96,0.36920216038984988,68,null,103,null,null,103,null,null,{"$f":"IF(COUNTIF($F$58:F192,F153)>1,\"重複\",\"\")","v":""}]
[null,97,0.88080992541347414,15,null,97,null,null,97,null,null,{"$f":"IF(COUNTIF($F$58:F193,F154)>1,\"重複\",\"\")","v":""}]
[null,98,0.15002750379229912,92,null,26,null,null,26,null,null,{"$f":"IF(COUNTIF($F$58:F194,F155)>1,\"重複\",\"\")","v":""}]
[null,99,0.12600133134278413,100,null,95,null,null,95,null,null,{"$f":"IF(COUNTIF($F$58:F195,F156)>1,\"重複\",\"\")","v":""}]
[null,100,0.58887678209720995,44,null,41,null,null,41,null,null,{"$f":"IF(COUNTIF($F$58:F196,F157)>1,\"重複\",\"\")","v":""}]
[null,101,0.25460221988356524,79,null,15,null,null,15,null,null,{"$f":"IF(COUNTIF($F$58:F197,F158)>1,\"重複\",\"\")","v":""}]
[null,102,0.61648005194452293,40,null,22,null,null,22,null,null,{"$f":"IF(COUNTIF($F$58:F198,F159)>1,\"重複\",\"\")","v":""}]
[null,103,0.53031666223336715,53,null,32,null,null,32,null,null,{"$f":"IF(COUNTIF($F$58:F199,F160)>1,\"重複\",\"\")","v":""}]
[null,104,0.85183093264569976,18,null,110,null,null,110,null,null,{"$f":"IF(COUNTIF($F$58:F200,F161)>1,\"重複\",\"\")","v":""}]
[null,105,0.33885663030929702,73,null,87,null,null,87,null,null,{"$f":"IF(COUNTIF($F$58:F201,F162)>1,\"重複\",\"\")","v":""}]
[null,106,0.62775330944676522,39,null,102,null,null,102,null,null,{"$f":"IF(COUNTIF($F$58:F202,F163)>1,\"重複\",\"\")","v":""}]
[null,107,0.11015234624907377,102,null,68,null,null,68,null,null,{"$f":"IF(COUNTIF($F$58:F203,F164)>1,\"重複\",\"\")","v":""}]
[null,108,0.99963694854266216,1,null,73,null,null,73,null,null,{"$f":"IF(COUNTIF($F$58:F204,F165)>1,\"重複\",\"\")","v":""}]
[null,109,0.61352149916767773,41,null,78,null,null,78,null,null,{"$f":"IF(COUNTIF($F$58:F205,F166)>1,\"重複\",\"\")","v":""}]
[null,110,0.14546750561660826,94,null,75,null,null,75,null,null,{"$f":"IF(COUNTIF($F$58:F206,F167)>1,\"重複\",\"\")","v":""}]
[null,111,0.73437857178426236,27,null,35,null,null,35,null,null,{"$f":"IF(COUNTIF($F$58:F207,F168)>1,\"重複\",\"\")","v":""}]
[null,null,null,null,112,58,null,null,58,null,null,{"$f":"IF(COUNTIF($F$58:F208,F169)>1,\"重複\",\"\")","v":"重複"}]
[null,null,null,null,113,8,null,null,8,null,null,{"$f":"IF(COUNTIF($F$58:F209,F170)>1,\"重複\",\"\")","v":"重複"}]
[null,null,null,null,114,46,null,null,46,null,null,{"$f":"IF(COUNTIF($F$58:F210,F171)>1,\"重複\",\"\")","v":"重複"}]
[null,null,null,null,115,37,null,null,37,null,null,{"$f":"IF(COUNTIF($F$58:F211,F172)>1,\"重複\",\"\")","v":"重複"}]
[null,null,null,null,116,45,null,null,45,null,null,{"$f":"IF(COUNTIF($F$58:F212,F173)>1,\"重複\",\"\")","v":"重複"}]
[null,null,null,null,117,25,null,null,25,null,null,{"$f":"IF(COUNTIF($F$58:F213,F174)>1,\"重複\",\"\")","v":"重複"}]
[null,null,null,null,118,83,null,null,83,null,null,{"$f":"IF(COUNTIF($F$58:F214,F175)>1,\"重複\",\"\")","v":"重複"}]
[null,null,null,null,119,85,null,null,85,null,null,{"$f":"IF(COUNTIF($F$58:F215,F176)>1,\"重複\",\"\")","v":"重複"}]
[null,null,null,null,120,24,null,null,24,null,null,{"$f":"IF(COUNTIF($F$58:F216,F177)>1,\"重複\",\"\")","v":"重複"}]

{"sheet":"用語表","index":3,"n_rows":164,"n_cols":6,"rows_kept":164,"cut":false,"hidden":true,"merged":[[134,0,147,0],[148,0,153,0],[154,0,163,0],[110,0,133,0],[82,0,109,0],[73,0,81,0],[2,0,6,0],[7,0,21,0],[22,0,36,0],[37,0,65,0],[66,0,72,0]]}
["全商情報処理検定1級　ビジネス情報部門　　用語"]
[]
["コンピュータの\n構成",1,"CPUと主記憶装置の間にあり、主記憶装置よりも高速なデータ転送が可能なメモリのこと。使用頻度の高いデータを蓄えておき、低速な装置から何度も読み出す無駄を省ける。","キャッシュメモリ","cache memory     *cache:貯蔵品"]
[null,2,"ハードディスクなど低速な機器に記憶されているデータを、メモリ（RAM）に格納すること。または、その格納されたメモリの領域。ハードディスクなどの補助記憶装置と主記憶装置の間にあり、補助記憶装置よりも高速なデータ転送が可能なメモリのこと。使用頻度の高いデータを蓄えておき、低速な装置から何度も読み出す無駄を省ける。","ディスクキャッシュ","disk cache"]
[null,3,"コンピュータに接続して使用するプリンタなどの周辺機器を動作させるためのソフトウェア。","デバイスドライバ","device driver       *driver:操縦者",1]
[null,4,"コンピュータに新しいハードウェアを追加するときなど、必要な設定をユーザが手動で設定作業をしなくても、OSが最適な設定を行うシステム。","プラグアンドプレイ",null,1]
[null,5,"HDD(ハードディスクドライブ）に比べて軽量小型で読み書き速度も速く、電力の消費も少ない。半導体メモリ（フラッシュメモリ）を使用した記憶装置。","SSD"]
["システム開発と運用",6,"基本設計→外部設計→内部設計→プログラム設計→プログラミング→テストの順番で開発を進めていく。工程の全体像がつかみやすいので大規模なシステム開発に向いている。","ウォータフォールモデル","waterfall model"]
[null,7,"開発の早い段階から試作品を作成して試用してもらい、ユーザの要求を確認しながら開発を進めるシステム開発手法。比較的小規模なシステムの開発に向いている。","プロトタイプモデル","prototype model"]
[null,8,"プロトタイプモデルとウォータフォールモデルを合わせた開発手法。独立性の高いプログラムごとに、設計→プログラミング→テストをユーザの要求に合うまで繰り返す。","スパイラルモデル","spiral model"]
[null,9,"ユーザと開発者が十分話し合い、ユーザからの要件をどのようにシステムとして実現できるかを判断した上で、システムに要求される機能を決定する開発工程。","基本設計","basic design"]
[null,10,"システム開発において、画面や帳票などを利用者側の視点から設計する開発工程。インターフェイスなどをユーザにとって使い勝手のよいシステムになるよう目指すための工程。","外部設計","external design"]
[null,11,"外部設計で決定した機能を実現するために、プログラムの詳細な機能を洗い出し、それぞれの機能を実現するための処理手順やデータの設計を行う開発工程。ソフトウェアのアルゴリズムや入出力データなどを詳細に設計する開発工程。","内部設計","internal design"]
[null,12,"内部設計に基づいて、各プログラムの内部構造を設計する開発工程。外部設計と内部設計の機能を、プログラムにより実現する方法を設計する工程。","プログラム設計","program design"]
[null,13,"プログラム設計の結果を受けて、プログラム言語を用いて実際にプログラムを作成（コーディング）する開発工程。","プログラミング","programing"]
[null,14,"開発者だけではなくユーザも参加して、作成したそれぞれのプログラムが設計したとおりに正しく動作するかを確かめ、プログラムの品質を高めること。","テスト","test"]
[null,15,"システムのテスト手法の一つで、個々のプログラム（部品）が仕様書の要求通りに機能しているかを確認するテスト。","単体テスト","unit test"]
[null,16,"システムのテスト手法の一つで、複数のモジュール(部品）を組み合わせて、モジュール間でデータの受け渡しが設計通りに行われているかなどを確認するテスト。","結合テスト","integration test"]
[null,17,"開発したシステム全体が、設計通りの機能を備えているかを確認するテストのこと。","システムテスト","system test"]
[null,18,"開発したシステムのユーザによる運用中のプログラムの欠陥などを修復する作業と、システム運用時にシステムの効率的な稼動を目的に実施する業務のこと。","保守・管理"]
[null,19,"システムの内部構造とは無関係に、外部から見た機能を検証するテスト方法。入力と出力だけに着目し、様々な入力に対して仕様書通りの出力が得られるか確認する。","ブラックボックステスト","brack box test"]
[null,20,"システム内部の構造を理解した上で、それら一つ一つが設計した通りに動作しているかを確認するプログラムのテスト方法。","ホワイトボックステスト","white box test"]
["性能・障害管理",21,"コンピュータシステムの信頼性を評価するときのチェック項目を示すもので、信頼性・可用性・保守性・保全性・機密性の5つの単語の頭文字を集めたもの。","RASIS","Reliability Availability Serviceability Intergrity Security"]
[null,22,"システムが目標とする稼動時間に対し、正常に稼動した時間の割合（確率）。","稼働率","availability"]
[null,23,"システムが故障してから復旧し、次に故障するまでの平均時間。すなわちシステムが正常に稼動している時間を平均で表したもの。","平均故障間隔（MTBF)","Mean Time Between Faliure"]
[null,24,"システムの障害発生時における修復時間の平均。この時間が短いほど保守性に優れている。","平均修復時間（MTTR)","Mean Time To Repair"]
[null,25,"コンピュータシステムや通信回線が、一定の時間内に処理できる仕事量や伝送できる情報量。","スループット","throughput"]
[null,26,"コンピュータシステムに処理実行の指示を出してから、最初の応答を得るまでの時間。","レスポンスタイム","response time"]
[null,27,"コンピュータシステムにに処理実行の指示を出してから、すべての実行結果が得られるまでの時間。","ターンアラウンドタイム","turn around time"]
[null,28,"事前に予備のシステムを準備しておき、障害が発生しても対応できるようにするシステム。","フォールトトレラント","fault-tolerance "]
[null,29,"障害が発生しても、被害や障害を最小限に止め、安全性を保つ仕組み。　　【例】　壊れたら赤しかつかなくなる信号機","フェールセーフ","failsoft "]
[null,30,"障害が発生した場合でも、システムの一部を停止して、他のシステムは継続して全体のシステムには支障を及ぼさないようにする仕組み。　【例】与圧はやめるがエンジンは最後まで回る飛行機。地震が発生した際、自動的にガスの供給を停止するガスメータ。","フェールソフト","failsafe"]
[null,31,"誤った操作をしても、システムの安全性と信頼性を保つ仕組み。コンピュータが人間の操作をチェックする機能をあらかじめ設計しておく考え方。　　【例】　ドアを閉めなければ動作しない電子レンジ。ドアが閉まらないと電車が発車しない。","フールプルーフ","foolproof（意味：確実な）"]
[null,32,"コンピュータ内部ではCPUやメモリなどの各回路間で処理を進めるタイミングを取るため、電気信号を１秒間に発生させる回数で、Hz（ヘルツ）で表す。","クロック周波数","clock frequency"]
[null,33,"コンピュータの処理速度を表す単位。１秒間に実行できる命令を１００万回単位で表したもの。","MIPS","Million Instruction Per Second"]
[null,34,"無停電電源装置のこと。バッテリーや発電機を内蔵し、停電などのトラブル発生時にコンピュータを安全に停止させるため、一定時間コンピュータに電気を供給する装置。","UPS","Uniterruptible Power Supply"]
[null,35,"ディスクアレイともいい、信頼性や処理速度を向上させるために、複数のハードディスク装置を並列に組み合わせて一体化し、全体を１つのディスク装置のように扱う装置。","RAID","Redundant Arrays of Inexpensive Disks"]
["ネットワークの構成",36,"国際標準化機構（ISO)で設定された、ネットワークで使用する機器やデータを送受信する手順など７つの階層に定義したもの。","OSI参照モデル"]
[null,37,"スター型ネットワークで使われる集線装置のこと。各機器に接続されたケーブルはいったんここに接続され、これを介して相互に通信する。","ハブ","hub"]
[null,38,"ネットワーク上を流れるデータを他のネットワークに中継する機器のこと。どの経路を通して転送すべきかを判断する経路選択機能を備えている。","ルータ","router"]
[null,39,"ルータが持つ経路選択機能のことで、パケットが正しい相手に送られるように経路を選択する機能のこと。","パケットフィルタリング"]
[null,40,"規格の異なったネットワーク同士を接続する場合に使われるハードウェア、ソフトウェアの総称。双方のネットワーク間のプロトコルの違いなどを調整して、接続をする。","ゲートウェイ","gateway"]
[null,41,"ネットワークにおいてデータを送受信する際の手順を定めた通信規約のこと。","プロトコル","protocol"]
[null,42,"現在最も普及しているインターネットやイントラネットの標準プロトコル。","TCP/IP","Transmission Control Protocol / Internet Protocol"]
[null,43,"WWWサーバのデータ（HTML文書、画像）をブラウザに表示させるためのプロトコル。","HTTP","Hyper Text Transfer Protocol"]
[null,44,"HTMLファイルをWebサーバへアップロードするときなど、ｆデータの転送のやりとりをするためのプロトコル。","FTP","File Transfer Protocol"]
[null,45,"メールサーバのメールボックスに保存されたメールを受信するために用いる通信規約。","POP"]
[null,46,"電子メールをユーザのコンピュータからメールサーバへ送信するときや、メールサーバ間でメールを転送するときに用いる通信規約。","SMTP"]
[null,47,"コンピュータをネットワークに接続する際にIPアドレスなどを自動的に割り当てる規約。","DHCP"]
[null,48,"NIC（ネットワークフェースカード）やルータなどのネットワーク機器に割り当てられているハードウェア固有の番号のこと。","MACアドレス","Media Access Control address"]
[null,49,"TCP/IPプロトコルを用いたネットワーク上で、コンピュータを識別するための番号。32ビット（IPv4)と128ビット(IPv6)がある。","IPアドレス","Internet Protocol Address"]
[null,50,"構内ネットワークに接続されたコンピュータやプリンタに割り当てられたＩＰアドレス。","プライベートIPアドレス","private IP address"]
[null,51,"インターネットに接続されたコンピュータなどの機器に割り当てられたＩＰアドレス。インターネットの中での住所にあたり、インターネット通信を行うために必ず必要。","グローバルIPアドレス","global IP address"]
[null,52,"ネットワークをいくつかのネットワークに区切るために用いられるビット列。ＩＰアドレスはこの値をマスキングすることで、ネットワークアドレスを求められる。","サブネットマスク","subnet mask"]
[null,53,"ＩＰアドレスを構成するビット列のうち、個々の組織が管理するネットワークを識別するのに使われる部分。","ネットワークアドレス","netwaork address"]
[null,54,"ＩＰアドレスを構成するビット列のうち、個々の端末を識別するのに使われる部分。","ホストアドレス","host address"]
[null,55,"インターネットのグローバルアドレスとプライベートアドレスを１対１で結びつけて相互に変換し、LAN内のコンピュータがインターネットを利用できるようにするためのアドレス変換の技術。","NAT"]
[null,56,"「非武装地帯」と呼ばれ、インターネットや内部ネットワークからも隔離された区域（セグメント）のこと。","DMZ"]
[null,57,"インターネット上でのコンピュータの名前にあたるドメイン名を、住所にあたるＩＰアドレスに変換するコンピュータのこと。","DNSサーバ","Domain Name System server"]
[null,58,"電子メールを受信するためのサーバのこと。ユーザがメールを受信するときは、電子メールソフトを使ってこのサーバに接続し、自分宛のメールを取り出す。","POPサーバ","Post Office Protocol server"]
[null,59,"電子メールを送信するためのサーバのこと。ユーザから送信されたメールを受け取り、送信先を探して、そこに送信する。","SMTPサーバ","Simple Mail Transfer Protocol server"]
[null,60,"インターネットに一時的に接続するコンピュータに、ＩＰアドレスなど必要な情報を自動的に割り当てるサーバ。","DHCPサーバ","Dynamic Host Configuration Protocol server"]
[null,61,"構内ネットワークとインターネットの境にあって、直接インターネットに接続できない内部ネットワークのコンピュータに代わってインターネットとの接続を行うコンピュータ。","プロキシサーバ","proxy server"]
[null,62,"ネットワーク上でデータを送受信するときに、１秒間に転送できるデータのビット数。モデムなどのデータ通信速度を示すのに用いられる。","通信速度（ｂｐｓ）","bit per second"]
[null,63,"データをインターネット上のサーバなどから送信・転送するのにかかる時間。","転送時間"]
[null,64,"データ通信において、実質的にデータを送受信することができる回線の割合のこと。","伝送効率"]
["ネットワークの\n活用",65,"クライアントサーバシステムで、クライアントには必要最小限の機能だけを持たせ、サーバでアプリケーションなどの管理を行うシステム構成で、情報漏えい対策としても注目されている。","シンクライアント"]
[null,66,"TCP/IPのコンピュータネットワークに直接接続して使用するHDD(ハードディスクドライブ）のこと。","NAS"]
[null,67,"Webへのアクセス状況やアンケートに回答したデータなど、Webサーバが、Webブラウザからの要求に応じて、プログラムを起動するための仕組みのこと。アクセスカウンタが代表例。","CGI","Common Geteway Interface "]
[null,68,"ネットワーク上でのデータ交換を容易にするために、ユーザ独自のタグを指定することができるマークアップ言語。","XML","eXtensible Markup Language"]
[null,69,"Webサイトの訪問日時や回数などの情報を利用者のコンピュータに保存する仕組み。","Cookie"]
[null,70,"各国の言葉やや画像、音声、動画など、形式の異なるさまざまなデータを電子メールで扱うための規格。","MIME","Mulitipurpose Internet Mail Extension"]
[null,71,"インターネットやイントラネットなどのネットワークを使って音声データを送受信する技術。構内ネットワークを使った内線電話や、インターネット電話などに応用される。","VoIP","Voice over Internet Protocol"]
["情報モラルと\nセキュリティ",72,"インターネットでデータを送受信する際に、第三者に内容が知られないようにデータを変換する場合、暗号化と復号に同じ鍵を用いる暗号方式のこと。","共通鍵暗号方式","common key cryptosystem"]
[null,73,"インターネットでデータを送受信する際に、第三者に内容が知られないようにデータを変換する場合、異なる２つの鍵を使ってデータの暗号化・復号を行う暗号方式のこと。","公開鍵暗号方式","public key cryptosystem"]
[null,74,"公開鍵暗号方式を応用して、コンピュータ上での電子的なサインのこと。通信する文書などが、本当にその本人が書いたものであり、他人が偽造したものでないことを証明する技術。電子商取引でよく利用される。","電子署名（ディジタル署名）"]
[null,75,"電子商取引で利用される暗号化通信などで必要となるデジタル証明書を発行する機関。","認証局（CA)"]
[null,76,"インターネット上で情報を暗号化して送受信するプロトコル。プライバシー情報やクレジットカード番号、企業秘密などを安全に送受信する。ブラウザのURLを示す部分は「https://」で始まる。","SSL","Secure Socket Layer"]
[null,77,"ブラウザとWebサーバ間で、データを暗号化して送受信するプロトコル。HTTPにSSLによるデータ暗号化機能を付加した通信規約。","HTTPS","Hyper Text Protocol Security"]
[null,78,"コンピュータの利用状況やデータ通信の状況を記録したファイル。","ログファイル","log file"]
[null,79,"OSやアプリケーションソフトなど、コンピュータシステムの動作状態を記録したもの。何らかのトラブルなどの情報も記録される。","システムログ"]
[null,80,"Webサーバにアクセスした人物が、いつ、どのコンピュータから、どのサイトを閲覧したのかなどの記録。","アクセスログ"]
["関連知識",81,"グループによるアイデア発想法のひとつで、４つの原則を守りながら、各自の自由な意見を出し合い、多数のアイデアを生み出す方法。","ブレーンストーミング","brain storming"]
[null,82,"グループによるデータの整理や分析をする方法のひとつで、各自の意見をカードに書き出し、整理することで意見をまとめていく方法。情報収集-->カード・グループ化-->図解化-->文章化の手順で行われる。","KJ法"]
[null,83,"問題を解決するために、複数の条件とその条件に対応する行動を表形式に示した図。","決定表（デシジョンテーブル）"]
[null,84,"４つの記号（１組の平行線、矢印、円、四角形）を用いて、システム間のデータの流れと処理の関係を表す図。","DFD","Data Flow Diagram"]
[null,85,"アローダイアグラムともいい、プロジェクトの日程計画や日程管理に用いられ、仕事全体を構成する各作業の作業日数などを図であらわしたもの。","パート図（PERT)","Pert Diagram"]
[null,86,"パート図において、作業開始から終了までの所要日数が最長となる経路。この経路の一部に遅れが生じると、作業全体のスケジュールに影響する。","クリティカルパス"]
[null,87,"パレート図を使用して、対象の要素を重要な順に並べ、上位からABCの３グループにわけて在庫管理などで分析する方法。","ABC分析","ABC analysis"]
[null,88,"件数の多い順に並べた棒グラフとともに、その件数の累積を示した折れ線グラフを重ねた複合グラフ。","パレード図","Pareto Diagram"]
[null,89,"一定期間の動向を分析するために、毎月の実績値、その累計値、移動合計値を１つのグラフで示したもの。","Zグラフ"]
[null,90,"相関関係にある２つのデータ間の関係や傾向を分析して、結果を予測すること。複数個の変数を持つデータの集合体から、変数に関する最も有力な関係を分析すること。","回帰分析"]
[null,91,"相互に関連性のある２つの要素の分布状況を見るときに用いられるグラフ。２つの要素は縦軸と横軸にとり、測定値を点で打ち、点の集まりや傾きなどで相関がわかる。","散布図"]
[null,92,"散布図において、２項目間に比例する関係があること。","正の相関"]
[null,93,"散布図において、２項目間で一方が高くなると一方が低くなるような比例関係があること。","負の相関"]
[null,94,"散布図において、ばらつきのあるデータの関係を導くために誤差が最小になる直線。","回帰直線（近似直線）"]
[null,95,"費用を最小限に抑えて最大の利益を得るための生産計画など、複数の制約条件の中で、最大（最小）値を求める手法のこと。","線形計画法"]
[null,96,"データをいくつかの区間にわけ、その範囲に含まれるデータの度数に比例する量を長方形の棒で表現したグラフ。","ヒストグラム"]
[null,97,"中心線と上下一対の管理限界線を引いて、製品などの特性値をプロットした図。品質不良や製造工程の異常を検出して不良原因の除去や再発防止に役立てる。","管理図"]
[null,98,"結果とそれに影響を及ぼしたと思われる原因の関係を体系的に表した図。直接的な原因と間接的な原因に分別して、真の問題点を明確にする効果がある。","特性要因図"]
[null,99,"ある時点のデータを基準に、その後のデータの変動を比率で表す折れ線グラフのこと。","ファンチャート","fan chart"]
[null,100,"自社の現状を、内的要因（強み・弱み）と外的要因（機会・脅威）の４つの要素に整理して、市場環境を分析すること。","SWOT分析（スウォット）","Strength Weakness Opportunity Threat"]
[null,101,"事業管理手法の一つで、自社の製品またはサービスを、市場の成長率と市場の占有率から、金のなる木・花形・問題児・負け犬の４つの区分に分類して、事業展開を決定するための管理手法。","PPM分析","Product Portfolio Management"]
[null,102,"企業の経営資源である財務や人事、生産や販売などを有効活用して、経営を効率化するための統合的なソフトウェア。","ERP(経営資源計画)","Enterprise Resource Planning(Enterprise：企業）"]
[null,103,"企業のすべての部門と顧客との間に信頼関係を築いて、企業と顧客の利益を共に向上することを目指す経営手法。","CRM(顧客関係管理)","Customer Relationship Management"]
[null,104,"企業活動に関する売り上げなどの目標を設定して、目標達成のための業務内容、流れ、組織を最適化すること。","BPR(業務プロセス再設計)","Business Process Reengineering"]
[null,105,"コスト削減などのために、自社の業務や機能の一部または全部を、それを専門とする外部の専門業者に委託すること。","アウトソーシング","outsourcing  (供給源）"]
[null,106,"複数の企業が互いに経済的なメリットを期待するために、企業が連携して協力体制を構築すること。","アライアンス","alliance（同盟）"]
[null,107,"顧客のサーバ自体を、ネットワーク環境の整った場所に設置するサービス。","ハウジングサービス","housing service "]
[null,108,"情報通信ネットワークを利用して、サーバやアプリケーションソフトなどを貸し出すサービス。","ホスティングサービス","hosting service"]
["データベース",109,"あるユーザが処理を行っている間は他のユーザがデータベースを使えないようにロックし、トランザクションが終了した時点で他のユーザが処理を行えるようにすること。","排他制御","Exclusive Access Control"]
[null,110,"同じデータに、複数のアクセスをする場合の整合性を取るための工夫。","ロック"]
[null,111,"データベースにおいて、ファイルを保持するために、ファイルを読み込むことは可能だが、レコードの変更はできないこと。","共有ロック"]
[null,112,"一つのレコードに対して一つの参照・変更・削除だけが取得できる。データを更新している途中で、他がデータを読み込んだり、変更できないようにする。","占有ロック"]
[null,113,"２つ以上の処理が、それぞれのロックのかかったデータにアクセスしようとして、ロックの開放ができず、待ち状態が無限に続くような状態のこと。","デッドロック","Dead Lock"]
[null,114,"データベースにおいて一連の更新処理のこと。","トランザクション"]
[null,115,"データベースにおいて、更新処理などがすべて正常に完結したという宣言。","コミット"]
[null,116,"データベースの更新前と更新後のデータの状態を記録したファイル。","ジャーナルファイル"]
[null,117,"データベースのシステム障害を回復するために、ミスや不具合などを探し出し、修正する作業時にプログラムの実行を中断する特定の位置もしくは機能。","チェックポイント"]
[null,118,"データベースにおける更新処理の途中などで、何らかの理由で不都合があった場合、データの整合性を保つために、ジャーナルファイルを用いてトランザクション処理開始時点の状態に戻すこと。","ロールバック"]
[null,119,"データが保存されているハードディスクに障害が発生した場合、バックアップファイルとジャーナルファイルを用いて、ハードディスクの障害発生以前の状態に復元すること。","ロールフォワード"]
[null,120,"実際に業務で使われている帳票や帳簿類を参考にして、業務内容を分析し、どのようなデータが必要で、どれを管理対象とするのかを検討する作業。","概念設計"]
[null,121,"概念設計の結果をシステム化の対象範囲に限定して定義すること。実際の業務での画面や帳票を参考にしてシステムで必要とするデータを洗い出す。","論理設計"]
[null,122,"論理設計の結果を用いて、処理内容などの観点から、ハードウェアの選択や最適配置などの検討を行うこと。主キーやインデックスの設定、必要容量の算定も行う。","物理設計"]
[null,123,"データの矛盾や重複（冗長性）があり、DBMSへの負担がかかる表の構造。","非正規形"]
[null,124,"非正規形から、重複して繰り返し現れる項目を排除すること。","第１正規化（正規形）"]
[null,125,"第１正規形から、主キーと関連のある項目を別のテーブルに分割すること。","第２正規化（正規形）"]
[null,126,"第２正規形から、主キーでない項目について、関連のある項目を別のテーブルに分割すること。","第３正規化（正規形）"]
[null,127,"エンティティ、エンティティ間の結びつきを表すリレーションシップ、エンティティの持つ値を表すアトリビュートの３つで、それぞれの相関関係を図式化したもの。","Ｅ－Ｒ図","Entity Relation Diagram"]
[null,128,"一単位として扱われるデータのまとまりのこと。また、データベースとして表現すべき対象物のこと。論理設計の段階では表に相当する。","エンティティ（実体）","Entity "]
[null,129,"エンティティが持つ特性、特徴などの値のこと。","アトリビュート（属性）","Attribute"]
[null,130,"エンティティとエンティティの相関関係のこと。","リレーションシップ（関係）","Relationship"]
[null,131,"新しい行の入力や削除を行っても、表間のリレーションシップが維持されるようにするための規則。レコードの追加や削除が勝手に行われないように、データベースの参照関係の整合性に関する規則。","整合性制約（参照整合性）"]
[null,132,"問い合わせ文の条件式部分に、別の問い合わせ文が埋め込まれたもの。問い合わせが入れ子になっている。ある表に対して問い合わせを行い、その結果を利用してさらに、次の問い合わせを行う時の最初の問い合わせ。","副問合せ"]
["関数",133,"指定された基準値の倍数のうち、最も近い値に数値を切り上げる。","CEILING　（シーリング）"]
[null,134,"指定された基準値の倍数のうち、最も近い値に数値を切り捨てる。","FLOOR　（フロア）"]
[null,135,"指定された数値の絶対値を表す値を表示する。","ABS","ａｂｓｏｕｌｕｔｅ"]
[null,136,"再計算が行われるごとに、０から１までの乱数を返す。","RAND","random number"]
[null,137,"「参照」で指定した範囲を第一引数で指定した「集計方法」で計算する。SUNTOTAL関数が入力されているセルは計算対象外となる。","SUBTOTAL"]
[null,138,"複数の条件に一致する数値の合計を求める。","SUMIFS"]
[null,139,"複数の条件に一致する数値の平均を求める。","AVERAGEIFS"]
[null,140,"複数の条件に一致するセルの個数を求める。","CONTIFS"]
[null,141,"回帰直線上の値を返す。","FORECAST　（フォーキャスト）"]
[null,142,"指定された範囲（数値）の中央値を求める。","MEDIAN　（メジアン）"]
[null,143,"指定された範囲で、最も頻繁に出現する値（最頻値）を求める。","MODE　（モード）"]
[null,144,"引数で指定されたセル番地または範囲の行番号を求める。引数を省略した場合は、関数を入力したセルの行番号を表示する。","ROW　　（ロウ）"]
[null,145,"引数で指定されたセル番地または範囲の列番号を求める。引数を省略した場合は、関数を入力したセルの列番号を表示する。","COLUMN　（コラム）"]
[null,146,"文字列中の特定の文字（検索文字列）を他の文字（置換文字列）に置き換える。","SUBSTITUTE　（サブスティテュート）","代えるの意"]
["データベース",147,"データベース内の指定された対象範囲のフィールド（列）を検索し、条件を満たすレコードの合計を求める。","DSUM","databese sum"]
[null,148,"データベース内の指定された対象範囲のフィールド（列）を検索し、条件を満たすレコードの平均を求める。","DAVERAGE"]
[null,149,"データベース内の指定された対象範囲のフィールド（列）を検索し、条件を満たすレコードの最大値を求める。","DMAX"]
[null,150,"データベース内の指定された対象範囲のフィールド（列）を検索し、条件を満たすレコードの最小値を求める。","DMIN"]
[null,151,"データベース内の指定された対象範囲のフィールド（列）を検索し、条件を満たすセル（数値が入力されているセル）の個数を求める。","DCOUNT"]
[null,152,"データベース内の指定された対象範囲のフィールド（列）を検索し、条件を満たすセル（データ（空白以外すべて）が入力されているセル）の個数を求める。","DCOUNTA"]
["ＳＱＬ",153,"データベースの表に新しいレコード（行）を追加する。","INSERT INTO ～ VALUES ～"]
[null,154,"データベースのレコードの内容を更新する。","UPDATE ～ SET ～ WHERE～"]
[null,155,"データベースのレコードを削除する。","DELETE FROM ～ WHERE ～"]
[null,156,"重複データを取り除く。","DISTINCT"]
[null,157,"文字列のデータの中から、指定した文字列を検索する。検索にはワイルドカード（_  %）が使用できる。","LIKE (ワイルドカード % _)"]
[null,158,"データを並べ替える。　昇順:ASC   降順:DESC","ORDER BY (ASC  DESC)"]
[null,159,"データをグループ化する。HAVING句で指定した条件に合致するグループを抽出する。","GROUP BY (HAVING)"]
[null,160,"ある値が特定の範囲に当てはまるかどうかを調べる。","BETWEEN ～ AND ～"]
[null,161,"値の集合を明確に定義する。","IN (NOT IN)"]
[null,162,"EXISTS記述の（）の中に書いてあるSQLで抽出されるレコードがある場合は真、無い場合は偽を返す。SELECT文による副問合せの結果、行が1行以上戻される場合には、TRUEと評価される。","EXSITS (NOT EXSITS）","EXSITS：存在する"]